Workbook

Sheet Moeda 1
A1: Exemplo 1: Lançamento de Moeda
D2: Média (n= 1000): | E2: =AVERAGE(A4:A1003) -> 0.515
A3: Resultados (n =1000) | B3: Resultados (n =5000) | D3: Média (n= 5000): | E3: =AVERAGE(B4:B5003) -> 0.5046018407
A4: =INT(RAND()*2) -> 1
A5: =INT(RAND()*2) -> 0 | B5: =INT(RAND()*2) -> 0
A6: 1 | B6: 0
A7: 0 | B7: 0
A8: 1 | B8: 1
A9: 0 | B9: 1
A10: 1 | B10: 0
A11: 1 | B11: 0
A12: 1 | B12: 0
A13: 1 | B13: 1
A14: 1 | B14: 1
A15: 1 | B15: 1
A16: 0 | B16: 1
A17: 1 | B17: 0
A18: 0 | B18: 1
A19: 0 | B19: 1
A20: 1 | B20: 1
A21: 0 | B21: 0
A22: 0 | B22: 0
A23: 0 | B23: 0
A24: 0 | B24: 0
A25: 1 | B25: 0
A26: 0 | B26: 0
A27: 0 | B27: 0
A28: 0 | B28: 0
A29: 1 | B29: 0
A30: 0 | B30: 1
A31: 1 | B31: 1
A32: 1 | B32: 0
A33: 1 | B33: 1
A34: 0 | B34: 1
A35: 0 | B35: 1
A36: 0 | B36: 1
A37: 1 | B37: 1
A38: 0 | B38: 1
A39: 0 | B39: 0
A40: 1 | B40: 0
A41: 0 | B41: 0
A42: 1 | B42: 0
A43: 0 | B43: 0
A44: 0 | B44: 0
A45: 0
A46: 1 | B46: 1
A47: 1 | B47: 1
A48: 0 | B48: 0
A49: 0 | B49: 1
A50: 1 | B50: 0
A51: 0 | B51: 1
A52: 1 | B52: 1
A53: 0 | B53: 1
A54: 0 | B54: 1
A55: 0 | B55: 0
A56: 0 | B56: 1
A57: 0 | B57: 0
A58: 1 | B58: 1
A59: 1 | B59: 0
A60: 1 | B60: 1
A61: 1 | B61: 0
A62: 0 | B62: 0
A63: 0 | B63: 1
A64: 1 | B64: 1
A65: 1 | B65: 0
A66: 1 | B66: 1
A67: 0 | B67: 0
A68: 0 | B68: 1
A69: =INT(RAND()*2) -> 1 | B69: 0
A70: 1 | B70: 0
A71: 1 | B71: 1
A72: 1 | B72: 1
A73: 1 | B73: 1
A74: 1 | B74: 0
A75: 0 | B75: 0
A76: 0 | B76: 0
A77: 0 | B77: 1
A78: 0 | B78: 0
A79: 1 | B79: 1
A80: 0 | B80: 0
A81: 1 | B81: 0
A82: 0 | B82: 1
A83: 0 | B83: 1
A84: 0 | B84: 0
A85: 1 | B85: 0
A86: 0 | B86: 1
A87: 1 | B87: 1
A88: 1 | B88: 0
A89: 0 | B89: 0
A90: 1 | B90: 0
A91: 1 | B91: 1
A92: 1 | B92: 1
A93: 0 | B93: 0
A94: 1 | B94: 1
A95: 0 | B95: 1
A96: 0 | B96: 0
A97: 1 | B97: 0
A98: 0 | B98: 1
A99: 1 | B99: 0
A100: 0 | B100: 1
A101: 1 | B101: 1
A102: 1 | B102: 1
A103: 1 | B103: 1
A104: 1 | B104: 1
A105: 1 | B105: 1
A106: 0 | B106: 1
A107: 0 | B107: 1
A108: 0 | B108: 0
A109: 0 | B109: 1
A110: 1 | B110: 1
A111: 0 | B111: 0
A112: 0 | B112: 1
A113: 1 | B113: 1
A114: 0 | B114: 0
A115: 1 | B115: 0
A116: 1 | B116: 1
A117: 0 | B117: 1
A118: 1 | B118: 1
A119: 1 | B119: 0
A120: 0 | B120: 0
A121: 1 | B121: 0
A122: 1 | B122: 1
A123: 1 | B123: 1
A124: 0 | B124: 0
A125: 1 | B125: 0
A126: 1 | B126: 1
A127: 1 | B127: 0
A128: 1 | B128: 1
A129: 0 | B129: 1
A130: 0 | B130: 0
A131: 0 | B131: 0
A132: 1 | B132: 1
A133: =INT(RAND()*2) -> 1 | B133: 0
A134: 0 | B134: 1
A135: 1 | B135: 1
A136: 1 | B136: 0
A137: 0 | B137: 0
A138: 1 | B138: 0
A139: 0 | B139: 1
A140: 1 | B140: 1
A141: 0 | B141: 1
A142: 1 | B142: 0
A143: 1 | B143: 0
A144: 1 | B144: 1
A145: 1 | B145: 0
A146: 0 | B146: 0
A147: 0 | B147: 0
A148: 1 | B148: 1
A149: 1 | B149: 1
A150: 1 | B150: 0
A151: 0 | B151: 1
A152: 0 | B152: 0
A153: 0 | B153: 1
A154: 0 | B154: 1
A155: 0 | B155: 1
A156: 1 | B156: 1
A157: 1 | B157: 0
A158: 0 | B158: 1
A159: 0 | B159: 1
A160: 1 | B160: 0
A161: 1 | B161: 0
A162: 1 | B162: 0
A163: 1 | B163: 0
A164: 0 | B164: 0
A165: 0 | B165: 0
A166: 1 | B166: 0
A167: 1 | B167: 1
A168: 0 | B168: 1
A169: 1 | B169: 1
A170: 1 | B170: 1
A171: 1 | B171: 1
A172: 0 | B172: 0
A173: 1 | B173: 1
A174: 0 | B174: 0
A175: 0 | B175: 0
A176: 1 | B176: 0
A177: 0 | B177: 1
A178: 0 | B178: 0
A179: 1 | B179: 0
A180: 0 | B180: 1
A181: 1 | B181: 1
A182: 0 | B182: 1
A183: 1 | B183: 1
A184: 0 | B184: 0
A185: 1 | B185: 1
A186: 1 | B186: 1
A187: 1 | B187: 1
A188: 1 | B188: 1
A189: 0 | B189: 1
A190: 1 | B190: 1
A191: 0 | B191: 1
A192: 0 | B192: 1
A193: 1 | B193: 0
A194: 0 | B194: 0
A195: 1 | B195: 0
A196: 0 | B196: 0
A197: =INT(RAND()*2) -> 0 | B197: 0
A198: 1 | B198: 1
A199: 1 | B199: 1
A200: 0 | B200: 1
... 4803 more rows

Sheet Moeda 2
A1: Exemplo 1: Lançamento múltiplo de moedas
A3: Simulação: | D3: =COUNT(L10:L5009) -> 5000
A4: Número de 7: | D4: =COUNTIF(L10:L5009,7) -> 606 | E4: =D4/D3 -> 0.1212
A5: Número de 7,8,9,10: | D5: =COUNTIF(L15:L5014,">6") -> 921 | E5: =D5/D3 -> 0.1842
A9: Lançamento 1 | B9: Lançamento 2 | C9: Lançamento 3 | D9: Lançamento 4 | E9: Lançamento 5 | F9: Lançamento 6 | G9: Lançamento 7 | H9: Lançamento 8 | I9: Lançamento 9 | J9: Lançamento 10 | L9: ContarCaras
A10: =INT(RAND()*2) -> 0 | B10: =INT(RAND()*2) -> 0 | C10: 0 | D10: 0 | E10: 1 | F10: 1 | G10: 0 | H10: 0 | I10: 1 | J10: 1 | L10: =SUM(A10:J10) -> 4
A11: 0 | B11: 1 | C11: 0 | D11: 1 | E11: 0 | F11: 1 | G11: 1 | H11: 1 | I11: 0 | J11: 0 | L11: =SUM(A11:J11) -> 5
A12: 0 | B12: 0 | C12: 1 | D12: 0 | E12: 0 | F12: 1 | G12: 0 | H12: 0 | I12: 1 | J12: 0 | L12: 3
A13: 1 | B13: 1 | C13: 0 | D13: 0 | E13: 1 | F13: 1 | G13: 0 | H13: 0 | I13: 1 | J13: 0 | L13: 5
A14: 0 | B14: 0 | C14: 0 | D14: 1 | E14: 0 | F14: 1 | G14: 0 | H14: 0 | I14: 1 | J14: 1 | L14: 4
A15: 1 | B15: 0 | C15: 0 | D15: 1 | E15: 1 | F15: 0 | G15: 0 | H15: 1 | I15: 1 | J15: 0 | L15: 5
A16: 0 | B16: 0 | C16: 0 | D16: 1 | E16: 1 | F16: 1 | G16: 1 | H16: 1 | I16: 1 | J16: 1 | L16: 7
A17: 1 | B17: 0 | C17: 0 | D17: 0 | E17: 0 | F17: 0 | G17: 1 | H17: 1 | I17: 0 | J17: 1 | L17: 4
A18: 0 | B18: 1 | C18: 0 | D18: 1 | E18: 0 | F18: 1 | G18: 1 | H18: 0 | I18: 0 | J18: 1 | L18: 5
A19: 1 | B19: 0 | C19: 1 | D19: 1 | E19: 0 | F19: 1 | G19: 0 | H19: 1 | I19: 0 | J19: 0 | L19: 5
A20: 1 | B20: 1 | C20: 1 | D20: 1 | E20: 0 | F20: 1 | G20: 0 | H20: 0 | I20: 1 | J20: 1 | L20: 7
A21: 1 | B21: 0 | C21: 1 | D21: 0 | E21: 1 | F21: 1 | G21: 1 | H21: 1 | I21: 1 | J21: 0 | L21: 7
A22: 0 | B22: 1 | C22: 0 | D22: 0 | E22: 1 | F22: 0 | G22: 0 | H22: 0 | I22: 1 | J22: 0 | L22: 3
A23: 0 | B23: 1 | C23: 1 | D23: 1 | E23: 0 | F23: 1 | G23: 1 | H23: 1 | I23: 1 | J23: 0 | L23: 7
A24: 0 | B24: 1 | C24: 0 | D24: 0 | E24: 1 | F24: 1 | G24: 1 | H24: 0 | I24: 0 | J24: 1 | L24: 5
A25: 0 | B25: 0 | C25: 1 | D25: 0 | E25: 1 | F25: 1 | G25: 0 | H25: 1 | I25: 0 | J25: 1 | L25: 5
A26: 1 | B26: =INT(RAND()*2) -> 0 | C26: 0 | D26: 0 | E26: 1 | F26: 1 | G26: 1 | H26: 1 | I26: 0 | J26: 0 | L26: 5
A27: 0 | B27: 0 | C27: 0 | D27: 0 | E27: 1 | F27: 1 | G27: 1 | H27: 0 | I27: 0 | J27: 1 | L27: 4
A28: 0 | B28: 0 | C28: 0 | D28: 1 | E28: 0 | F28: 0 | G28: 0 | H28: 1 | I28: 0 | J28: 0 | L28: 2
A29: 1 | B29: 0 | C29: 1 | D29: 1 | E29: 0 | F29: 0 | G29: 0 | H29: 0 | I29: 0 | J29: 1 | L29: 4
A30: 1 | B30: 0 | C30: 0 | D30: 1 | E30: 0 | F30: 1 | G30: 0 | H30: 0 | I30: 1 | J30: 0 | L30: 4
A31: 0 | B31: 0 | C31: 1 | D31: 1 | E31: 0 | F31: 0 | G31: 1 | H31: 1 | I31: 1 | J31: 1 | L31: 6
A32: 0 | B32: 1 | C32: 0 | D32: 0 | E32: 0 | F32: 1 | G32: 0 | H32: 1 | I32: 0 | J32: 1 | L32: 4
A33: 0 | B33: 0 | C33: 0 | D33: 0 | E33: 0 | F33: 0 | G33: 0 | H33: 0 | I33: 1 | J33: 0 | L33: 1
A34: 1 | B34: 1 | C34: 0 | D34: 0 | E34: 0 | F34: 0 | G34: 1 | H34: 1 | I34: 1 | J34: 0 | L34: 5
A35: 1 | B35: 0 | C35: 0 | D35: 1 | E35: 0 | F35: 1 | G35: 0 | H35: 0 | I35: 0 | J35: 1 | L35: 4
A36: 1 | B36: =INT(RAND()*2) -> 0 | C36: 1 | D36: 1 | E36: 0 | F36: 0 | G36: 0 | H36: 0 | I36: 0 | J36: 0 | L36: 3
A37: 1 | B37: 1 | C37: 1 | D37: 0 | E37: 0 | F37: 1 | G37: 0 | H37: 0 | I37: 0 | J37: 1 | L37: 5
A38: 0 | B38: 0 | C38: 0 | D38: 0 | E38: 1 | F38: 0 | G38: 1 | H38: 0 | I38: 1 | J38: 0 | L38: 3
A39: 1 | B39: 0 | C39: 0 | D39: 1 | E39: 1 | F39: 1 | G39: 0 | H39: 0 | I39: 0 | J39: 0 | L39: 4
A40: 1 | B40: 0 | C40: 0 | D40: 1 | E40: 1 | F40: 0 | G40: 1 | H40: 1 | I40: 0 | J40: 0 | L40: 5
A41: 1 | B41: 0 | C41: 1 | D41: 0 | E41: 0 | F41: 0 | G41: 1 | H41: 0 | I41: 0 | J41: 1 | L41: 4
A42: =INT(RAND()*2) -> 0 | B42: 1 | C42: 0 | D42: 0 | E42: 0 | F42: 1 | G42: 1 | H42: 0 | I42: 1 | J42: 0 | L42: 4
A43: 1 | B43: 1 | C43: 1 | D43: 1 | E43: 1 | F43: 1 | G43: 0 | H43: 1 | I43: 0 | J43: 1 | L43: 8
A44: 0 | B44: 0 | C44: 1 | D44: 0 | E44: 0 | F44: 0 | G44: 0 | H44: 0 | I44: 0 | J44: 0 | L44: 1
A45: 1 | B45: 1 | C45: 1 | D45: 0 | E45: 0 | F45: 1 | G45: 0 | H45: 1 | I45: 0 | J45: 1 | L45: 6
A46: 1 | B46: =INT(RAND()*2) -> 0 | C46: 1 | D46: 1 | E46: 1 | F46: 1 | G46: 0 | H46: 1 | I46: 1 | J46: 1 | L46: 8
A47: 0 | B47: 1 | C47: 0 | D47: 1 | E47: 0 | F47: 0 | G47: 1 | H47: 0 | I47: 0 | J47: 0 | L47: 3
A48: 0 | B48: 0 | C48: 1 | D48: 1 | E48: 0 | F48: 0 | G48: 0 | H48: 0 | I48: 1 | J48: 1 | L48: 4
A49: 1 | B49: 0 | C49: 0 | D49: 0 | E49: 0 | F49: 0 | G49: 1 | H49: 0 | I49: 0 | J49: 1 | L49: 3
A50: 0 | B50: 1 | C50: 1 | D50: 0 | E50: 1 | F50: 0 | G50: 0 | H50: 1 | I50: 0 | J50: 0 | L50: 4
A51: 1 | B51: 0 | C51: 0 | D51: 1 | E51: 1 | F51: 1 | G51: 1 | H51: 1 | I51: 1 | J51: 0 | L51: 7
A52: 1 | B52: 0 | C52: 1 | D52: 0 | E52: 1 | F52: 0 | G52: 1 | H52: 1 | I52: 1 | J52: 1 | L52: 7
A53: 1 | B53: 1 | C53: 1 | D53: 1 | E53: 1 | F53: 1 | G53: 0 | H53: 0 | I53: 0 | J53: 0 | L53: 6
A54: 1 | B54: 1 | C54: 0 | D54: 1 | E54: 0 | F54: 1 | G54: 0 | H54: 0 | I54: 1 | J54: 1 | L54: 6
A55: 1 | B55: 1 | C55: 0 | D55: 0 | E55: 0 | F55: 0 | G55: 0 | H55: 1 | I55: 0 | J55: 0 | L55: 3
A56: 1 | B56: =INT(RAND()*2) -> 1 | C56: 1 | D56: 0 | E56: 0 | F56: 0 | G56: 1 | H56: 0 | I56: 1 | J56: 0 | L56: 5
A57: 0 | B57: 1 | C57: 1 | D57: 0 | E57: 1 | F57: 0 | G57: 1 | H57: 0 | I57: 0 | J57: 0 | L57: 4
A58: 0 | B58: 0 | C58: 1 | D58: 0 | E58: 1 | F58: 1 | G58: 1 | H58: 1 | I58: 0 | J58: 1 | L58: 6
A59: 1 | B59: 1 | C59: 0 | D59: 1 | E59: 1 | F59: 0 | G59: 0 | H59: 0 | I59: 0 | J59: 1 | L59: 5
A60: 1 | B60: 1 | C60: 0 | D60: 0 | E60: 0 | F60: 1 | G60: 1 | H60: 0 | I60: 1 | J60: 1 | L60: 6
A61: 1 | B61: 0 | C61: 1 | D61: 1 | E61: 1 | F61: 1 | G61: 0 | H61: 1 | I61: 0 | J61: 1 | L61: 7
A62: 1 | B62: 0 | C62: 0 | D62: 0 | E62: 0 | F62: 0 | G62: 1 | H62: 0 | I62: 1 | J62: 0 | L62: 3
A63: 0 | B63: 0 | C63: 0 | D63: 1 | E63: 0 | F63: 0 | G63: 0 | H63: 0 | I63: 0 | J63: 0 | L63: 1
A64: 0 | B64: 0 | C64: 1 | D64: 0 | E64: 0 | F64: 0 | G64: 1 | H64: 1 | I64: 0 | J64: 0 | L64: 3
A65: 0 | B65: 1 | C65: 0 | D65: 1 | E65: 0 | F65: 0 | G65: 1 | H65: 1 | I65: 1 | J65: 1 | L65: 6
A66: 1 | B66: =INT(RAND()*2) -> 1 | C66: 1 | D66: 0 | E66: 1 | F66: 0 | G66: 0 | H66: 0 | I66: 0 | J66: 0 | L66: 4
A67: 0 | B67: 0 | C67: 1 | D67: 0 | E67: 0 | F67: 0 | G67: 1 | H67: 0 | I67: 1 | J67: 0 | L67: 3
A68: 1 | B68: 1 | C68: 0 | D68: 1 | E68: 0 | F68: 1 | G68: 0 | H68: 1 | I68: 0 | J68: 0 | L68: 5
A69: 1 | B69: 0 | C69: 0 | D69: 0 | E69: 0 | F69: 0 | G69: 1 | H69: 1 | I69: 0 | J69: 0 | L69: 3
A70: 0 | B70: 0 | C70: 1 | D70: 1 | E70: 1 | F70: 0 | G70: 1 | H70: 1 | I70: 1 | J70: 0 | L70: 6
A71: 1 | B71: 1 | C71: 1 | D71: 1 | E71: 1 | F71: 0 | G71: 1 | H71: 0 | I71: 0 | J71: 0 | L71: 6
A72: 0 | B72: 0 | C72: 0 | D72: 0 | E72: 1 | F72: 1 | G72: 1 | H72: 0 | I72: 1 | J72: 1 | L72: 5
A73: 0 | B73: 0 | C73: 1 | D73: 1 | E73: 1 | F73: 0 | G73: 0 | H73: 0 | I73: 0 | J73: 1 | L73: 4
A74: 1 | B74: 0 | C74: 0 | D74: 1 | E74: 1 | F74: 1 | G74: 0 | H74: 0 | I74: 1 | J74: 1 | L74: 6
A75: 1 | B75: 1 | C75: 0 | D75: 0 | E75: 1 | F75: 0 | G75: 0 | H75: 0 | I75: 0 | J75: 1 | L75: =SUM(A75:J75) -> 4
A76: =INT(RAND()*2) -> 0 | B76: =INT(RAND()*2) -> 0 | C76: 0 | D76: 0 | E76: 1 | F76: 0 | G76: 1 | H76: 1 | I76: 1 | J76: 1 | L76: 5
A77: 0 | B77: 0 | C77: 1 | D77: 1 | E77: 0 | F77: 0 | G77: 0 | H77: 1 | I77: 0 | J77: 1 | L77: 4
A78: 0 | B78: 0 | C78: 1 | D78: 0 | E78: 0 | F78: 1 | G78: 0 | H78: 0 | I78: 0 | J78: 0 | L78: 2
A79: 1 | B79: 1 | C79: 0 | D79: 1 | E79: 0 | F79: 0 | G79: 1 | H79: 0 | I79: 0 | J79: 1 | L79: 5
A80: 0 | B80: 1 | C80: 1 | D80: 0 | E80: 0 | F80: 1 | G80: 1 | H80: 1 | I80: 0 | J80: 1 | L80: 6
A81: 0 | B81: 0 | C81: 0 | D81: 0 | E81: 1 | F81: 1 | G81: 1 | H81: 1 | I81: 0 | J81: 1 | L81: 5
A82: 1 | B82: 1 | C82: 0 | D82: 1 | E82: 0 | F82: 1 | G82: 0 | H82: 1 | I82: 1 | J82: 0 | L82: 6
A83: 0 | B83: 1 | C83: 0 | D83: 0 | E83: 1 | F83: 0 | G83: 0 | H83: 1 | I83: 0 | J83: 1 | L83: 4
A84: 0 | B84: 1 | C84: 1 | D84: 0 | E84: 0 | F84: 0 | G84: 0 | H84: 1 | I84: 0 | J84: 0 | L84: 3
A85: 1 | B85: 0 | C85: 0 | D85: 0 | E85: 0 | F85: 0 | G85: 0 | H85: 0 | I85: 0 | J85: 0 | L85: 1
A86: 0 | B86: =INT(RAND()*2) -> 1 | C86: 1 | D86: 0 | E86: 0 | F86: 0 | G86: 0 | H86: 1 | I86: 0 | J86: 1 | L86: 4
A87: 1 | B87: 0 | C87: 1 | D87: 1 | E87: 0 | F87: 0 | G87: 1 | H87: 0 | I87: 1 | J87: 1 | L87: 6
A88: 1 | B88: 0 | C88: 1 | D88: 0 | E88: 0 | F88: 1 | G88: 1 | H88: 0 | I88: 1 | J88: 1 | L88: 6
A89: 1 | B89: 1 | C89: 1 | D89: 1 | E89: 1 | F89: 0 | G89: 1 | H89: 1 | I89: 0 | J89: 0 | L89: 7
A90: 0 | B90: 1 | C90: 0 | D90: 1 | E90: 0 | F90: 1 | G90: 1 | H90: 1 | I90: 0 | J90: 1 | L90: 6
A91: 1 | B91: 0 | C91: 0 | D91: 1 | E91: 1 | F91: 0 | G91: 0 | H91: 0 | I91: 0 | J91: 1 | L91: 4
A92: 1 | B92: 1 | C92: 1 | D92: 0 | E92: 1 | F92: 1 | G92: 1 | H92: 0 | I92: 1 | J92: 0 | L92: 7
A93: 0 | B93: 1 | C93: 1 | D93: 0 | E93: 1 | F93: 1 | G93: 1 | H93: 1 | I93: 1 | J93: 0 | L93: 7
A94: 1 | B94: 0 | C94: 1 | D94: 1 | E94: 1 | F94: 0 | G94: 1 | H94: 1 | I94: 1 | J94: 0 | L94: 7
A95: 0 | B95: 0 | C95: 1 | D95: 0 | E95: 0 | F95: 1 | G95: 1 | H95: 0 | I95: 0 | J95: 1 | L95: 4
A96: 1 | B96: =INT(RAND()*2) -> 1 | C96: 0 | D96: 0 | E96: 1 | F96: 0 | G96: 0 | H96: 0 | I96: 1 | J96: 0 | L96: 4
A97: 0 | B97: 0 | C97: 0 | D97: 0 | E97: 0 | F97: 0 | G97: 0 | H97: 0 | I97: 1 | J97: 0 | L97: 1
A98: 1 | B98: 1 | C98: 0 | D98: 1 | E98: 0 | F98: 1 | G98: 0 | H98: 1 | I98: 1 | J98: 0 | L98: 6
A99: 1 | B99: 1 | C99: 0 | D99: 0 | E99: 1 | F99: 0 | G99: 0 | H99: 1 | I99: 0 | J99: 1 | L99: 5
A100: 0 | B100: 1 | C100: 0 | D100: 0 | E100: 1 | F100: 1 | G100: 0 | H100: 0 | I100: 1 | J100: 1 | L100: 5
A101: 0 | B101: 1 | C101: 1 | D101: 0 | E101: 0 | F101: 1 | G101: 1 | H101: 0 | I101: 0 | J101: 1 | L101: 5
A102: 0 | B102: 1 | C102: 0 | D102: 0 | E102: 1 | F102: 1 | G102: 1 | H102: 0 | I102: 0 | J102: 0 | L102: 4
A103: 0 | B103: 1 | C103: 1 | D103: 1 | E103: 0 | F103: 0 | G103: 1 | H103: 0 | I103: 0 | J103: 1 | L103: 5
A104: 1 | B104: 1 | C104: 1 | D104: 1 | E104: 1 | F104: 1 | G104: 0 | H104: 1 | I104: 0 | J104: 1 | L104: 8
A105: 0 | B105: 0 | C105: 0 | D105: 0 | E105: 0 | F105: 0 | G105: 1 | H105: 0 | I105: 1 | J105: 0 | L105: 2
A106: 0 | B106: =INT(RAND()*2) -> 0 | C106: 1 | D106: 0 | E106: 0 | F106: 0 | G106: 1 | H106: 0 | I106: 1 | J106: 0 | L106: 3
A107: 1 | B107: 0 | C107: 0 | D107: 0 | E107: 0 | F107: 0 | G107: 0 | H107: 0 | I107: 0 | J107: 1 | L107: 2
A108: 0 | B108: 1 | C108: 1 | D108: 1 | E108: 1 | F108: 1 | G108: 1 | H108: 1 | I108: 0 | J108: 0 | L108: 7
A109: 0 | B109: 1 | C109: 0 | D109: 0 | E109: 1 | F109: 0 | G109: 1 | H109: 0 | I109: 0 | J109: 0 | L109: 3
A110: 1 | B110: 0 | C110: 1 | D110: 1 | E110: 1 | F110: 1 | G110: 1 | H110: 1 | I110: 0 | J110: 1 | L110: 8
A111: 1 | B111: 1 | C111: 0 | D111: 0 | E111: 1 | F111: 0 | G111: 1 | H111: 0 | I111: 1 | J111: 1 | L111: 6
A112: 0 | B112: 0 | C112: 0 | D112: 0 | E112: 1 | F112: 1 | G112: 1 | H112: 1 | I112: 1 | J112: 0 | L112: 5
A113: 1 | B113: 1 | C113: 1 | D113: 0 | E113: 1 | F113: 1 | G113: 0 | H113: 1 | I113: 1 | J113: 1 | L113: 8
A114: 1 | B114: 0 | C114: 0 | D114: 1 | E114: 1 | F114: 1 | G114: 0 | H114: 1 | I114: 1 | J114: 1 | L114: 7
A115: 1 | B115: 0 | C115: 0 | D115: 1 | E115: 0 | F115: 1 | G115: 1 | H115: 0 | I115: 1 | J115: 0 | L115: 5
A116: 0 | B116: =INT(RAND()*2) -> 1 | C116: 0 | D116: 0 | E116: 0 | F116: 1 | G116: 0 | H116: 0 | I116: 1 | J116: 0 | L116: 3
A117: 0 | B117: 1 | C117: 0 | D117: 1 | E117: 1 | F117: 1 | G117: 1 | H117: 1 | I117: 1 | J117: 1 | L117: 8
A118: 0 | B118: 1 | C118: 1 | D118: 1 | E118: 0 | F118: 0 | G118: 1 | H118: 0 | I118: 1 | J118: 1 | L118: 6
A119: 1 | B119: 1 | C119: 0 | D119: 1 | E119: 1 | F119: 0 | G119: 0 | H119: 1 | I119: 0 | J119: 0 | L119: 5
A120: 1 | B120: 1 | C120: 0 | D120: 0 | E120: 0 | F120: 0 | G120: 1 | H120: 0 | I120: 1 | J120: 1 | L120: 5
A121: 1 | B121: 0 | C121: 0 | D121: 1 | E121: 0 | F121: 0 | G121: 0 | H121: 0 | I121: 1 | J121: 1 | L121: 4
A122: 1 | B122: 1 | C122: 1 | D122: 0 | E122: 1 | F122: 1 | G122: 0 | H122: 1 | I122: 1 | J122: 0 | L122: 7
A123: 1 | B123: 1 | C123: 0 | D123: 0 | E123: 1 | F123: 1 | G123: 1 | H123: 1 | I123: 1 | J123: 1 | L123: 8
A124: 0 | B124: 0 | C124: 1 | D124: 0 | E124: 0 | F124: 1 | G124: 1 | H124: 1 | I124: 1 | J124: 0 | L124: 5
A125: 0 | B125: 1 | C125: 1 | D125: 0 | E125: 1 | F125: 1 | G125: 1 | H125: 0 | I125: 1 | J125: 0 | L125: 6
A126: 1 | B126: =INT(RAND()*2) -> 0 | C126: 0 | D126: 1 | E126: 1 | F126: 1 | G126: 0 | H126: 0 | I126: 0 | J126: 0 | L126: 4
A127: 0 | B127: 1 | C127: 1 | D127: 1 | E127: 1 | F127: 0 | G127: 1 | H127: 0 | I127: 1 | J127: 0 | L127: 6
A128: 1 | B128: 1 | C128: 0 | D128: 0 | E128: 1 | F128: 1 | G128: 0 | H128: 1 | I128: 1 | J128: 1 | L128: 7
A129: 1 | B129: 1 | C129: 1 | D129: 1 | E129: 0 | F129: 0 | G129: 1 | H129: 1 | I129: 0 | J129: 0 | L129: 6
A130: 0 | B130: 0 | C130: 0 | D130: 0 | E130: 0 | F130: 0 | G130: 1 | H130: 1 | I130: 0 | J130: 1 | L130: 3
A131: 0 | B131: 1 | C131: 0 | D131: 0 | E131: 1 | F131: 0 | G131: 0 | H131: 1 | I131: 0 | J131: 1 | L131: 4
A132: 1 | B132: 1 | C132: 0 | D132: 0 | E132: 1 | F132: 0 | G132: 0 | H132: 1 | I132: 0 | J132: 0 | L132: 4
A133: 0 | B133: 0 | C133: 0 | D133: 1 | E133: 1 | F133: 0 | G133: 0 | H133: 0 | I133: 1 | J133: 1 | L133: 4
A134: 0 | B134: 0 | C134: 0 | D134: 0 | E134: 0 | F134: 0 | G134: 1 | H134: 0 | I134: 1 | J134: 0 | L134: 2
A135: 1 | B135: 0 | C135: 0 | D135: 0 | E135: 1 | F135: 1 | G135: 0 | H135: 0 | I135: 0 | J135: 1 | L135: 4
A136: 1 | B136: =INT(RAND()*2) -> 0 | C136: 1 | D136: 0 | E136: 1 | F136: 0 | G136: 1 | H136: 1 | I136: 0 | J136: 0 | L136: 5
A137: 0 | B137: 1 | C137: 0 | D137: 1 | E137: 0 | F137: 1 | G137: 1 | H137: 0 | I137: 0 | J137: 0 | L137: 4
A138: 0 | B138: 1 | C138: 0 | D138: 0 | E138: 1 | F138: 1 | G138: 1 | H138: 1 | I138: 0 | J138: 0 | L138: 5
A139: 0 | B139: 0 | C139: 1 | D139: 0 | E139: 0 | F139: 1 | G139: 0 | H139: 1 | I139: 0 | J139: 1 | L139: =SUM(A139:J139) -> 4
A140: =INT(RAND()*2) -> 0 | B140: 1 | C140: 0 | D140: 1 | E140: 1 | F140: 0 | G140: 1 | H140: 0 | I140: 0 | J140: 1 | L140: 5
A141: 0 | B141: 1 | C141: 1 | D141: 1 | E141: 0 | F141: 1 | G141: 1 | H141: 0 | I141: 0 | J141: 0 | L141: 5
A142: 0 | B142: 0 | C142: 1 | D142: 0 | E142: 0 | F142: 1 | G142: 0 | H142: 1 | I142: 0 | J142: 1 | L142: 4
A143: 0 | B143: 0 | C143: 0 | D143: 0 | E143: 0 | F143: 1 | G143: 1 | H143: 0 | I143: 1 | J143: 1 | L143: 4
A144: 1 | B144: 0 | C144: 0 | D144: 1 | E144: 0 | F144: 1 | G144: 1 | H144: 0 | I144: 0 | J144: 0 | L144: 4
A145: 0 | B145: 0 | C145: 0 | D145: 0 | E145: 1 | F145: 0 | G145: 1 | H145: 0 | I145: 0 | J145: 0 | L145: 2
A146: 1 | B146: =INT(RAND()*2) -> 1 | C146: 0 | D146: 0 | E146: 0 | F146: 0 | G146: 0 | H146: 1 | I146: 0 | J146: 1 | L146: 4
A147: 0 | B147: 1 | C147: 0 | D147: 1 | E147: 0 | F147: 0 | G147: 0 | H147: 1 | I147: 1 | J147: 0 | L147: 4
A148: 1 | B148: 0 | C148: 0 | D148: 0 | E148: 1 | F148: 0 | G148: 0 | H148: 0 | I148: 1 | J148: 1 | L148: 4
A149: 1 | B149: 1 | C149: 0 | D149: 1 | E149: 0 | F149: 0 | G149: 1 | H149: 1 | I149: 1 | J149: 1 | L149: 7
A150: 0 | B150: 1 | C150: 0 | D150: 1 | E150: 1 | F150: 0 | G150: 0 | H150: 1 | I150: 0 | J150: 1 | L150: 5
A151: 1 | B151: 0 | C151: 1 | D151: 1 | E151: 1 | F151: 0 | G151: 0 | H151: 0 | I151: 1 | J151: 0 | L151: 5
A152: 1 | B152: 0 | C152: 1 | D152: 0 | E152: 0 | F152: 1 | G152: 1 | H152: 1 | I152: 1 | J152: 0 | L152: 6
A153: 0 | B153: 0 | C153: 0 | D153: 0 | E153: 1 | F153: 0 | G153: 1 | H153: 1 | I153: 1 | J153: 0 | L153: 4
A154: 0 | B154: 0 | C154: 0 | D154: 1 | E154: 0 | F154: 0 | G154: 0 | H154: 0 | I154: 0 | J154: 0 | L154: 1
A155: 1 | B155: 0 | C155: 1 | D155: 0 | E155: 0 | F155: 0 | G155: 0 | H155: 0 | I155: 1 | J155: 1 | L155: 4
A156: 0 | B156: =INT(RAND()*2) -> 1 | C156: 0 | D156: 1 | E156: 1 | F156: 1 | G156: 0 | H156: 1 | I156: 1 | J156: 1 | L156: 7
A157: 1 | B157: 0 | C157: 1 | D157: 0 | E157: 0 | F157: 1 | G157: 1 | H157: 1 | I157: 0 | J157: 0 | L157: 5
A158: 0 | B158: 1 | C158: 1 | D158: 1 | E158: 1 | F158: 0 | G158: 0 | H158: 0 | I158: 0 | J158: 0 | L158: 4
A159: 1 | B159: 1 | C159: 0 | D159: 1 | E159: 0 | F159: 0 | G159: 1 | H159: 1 | I159: 1 | J159: 1 | L159: 7
A160: 0 | B160: 1 | C160: 1 | D160: 1 | E160: 1 | F160: 0 | G160: 1 | H160: 1 | I160: 1 | J160: 0 | L160: 7
A161: 0 | B161: 0 | C161: 0 | D161: 0 | E161: 0 | F161: 1 | G161: 0 | H161: 0 | I161: 0 | J161: 1 | L161: 2
A162: 1 | B162: 1 | C162: 0 | D162: 0 | E162: 1 | F162: 0 | G162: 0 | H162: 1 | I162: 1 | J162: 1 | L162: 6
A163: 1 | B163: 1 | C163: 0 | D163: 0 | E163: 0 | F163: 0 | G163: 0 | H163: 0 | I163: 0 | J163: 1 | L163: 3
A164: 1 | B164: 0 | C164: 0 | D164: 0 | E164: 0 | F164: 1 | G164: 1 | H164: 1 | I164: 1 | J164: 0 | L164: 5
A165: 0 | B165: 1 | C165: 0 | D165: 0 | E165: 0 | F165: 1 | G165: 1 | H165: 0 | I165: 0 | J165: 1 | L165: 4
A166: 0 | B166: =INT(RAND()*2) -> 1 | C166: 1 | D166: 0 | E166: 0 | F166: 0 | G166: 1 | H166: 0 | I166: 1 | J166: 0 | L166: 4
A167: 0 | B167: 0 | C167: 0 | D167: 1 | E167: 1 | F167: 1 | G167: 0 | H167: 1 | I167: 0 | J167: 0 | L167: 4
A168: 0 | B168: 0 | C168: 0 | D168: 1 | E168: 0 | F168: 1 | G168: 1 | H168: 1 | I168: 0 | J168: 1 | L168: 5
A169: 0 | B169: 0 | C169: 0 | D169: 0 | E169: 0 | F169: 0 | G169: 1 | H169: 0 | I169: 1 | J169: 1 | L169: 3
A170: 1 | B170: 0 | C170: 0 | D170: 0 | E170: 1 | F170: 1 | G170: 0 | H170: 1 | I170: 1 | J170: 1 | L170: 6
A171: 1 | B171: 1 | C171: 0 | D171: 1 | E171: 0 | F171: 1 | G171: 0 | H171: 0 | I171: 0 | J171: 1 | L171: 5
A172: 0 | B172: 1 | C172: 0 | D172: 0 | E172: 1 | F172: 0 | G172: 0 | H172: 0 | I172: 1 | J172: 1 | L172: 4
A173: 1 | B173: 1 | C173: 1 | D173: 1 | E173: 1 | F173: 1 | G173: 1 | H173: 1 | I173: 1 | J173: 0 | L173: 9
A174: 1 | B174: 0 | C174: 1 | D174: 0 | E174: 0 | F174: 1 | G174: 1 | H174: 0 | I174: 0 | J174: 1 | L174: 5
A175: 0 | B175: 0 | C175: 1 | D175: 1 | E175: 0 | F175: 1 | G175: 0 | H175: 1 | I175: 0 | J175: 0 | L175: 4
A176: 1 | B176: =INT(RAND()*2) -> 1 | C176: 0 | D176: 0 | E176: 0 | F176: 1 | G176: 1 | H176: 1 | I176: 0 | J176: 1 | L176: 6
A177: 0 | B177: 0 | C177: 0 | D177: 1 | E177: 0 | F177: 1 | G177: 0 | H177: 0 | I177: 1 | J177: 0 | L177: 3
A178: 1 | B178: 0 | C178: 1 | D178: 1 | E178: 1 | F178: 1 | G178: 1 | H178: 1 | I178: 0 | J178: 0 | L178: 7
A179: 1 | B179: 1 | C179: 1 | D179: 1 | E179: 0 | F179: 0 | G179: 0 | H179: 0 | I179: 1 | J179: 0 | L179: 5
A180: 1 | B180: 0 | C180: 1 | D180: 1 | E180: 0 | F180: 0 | G180: 1 | H180: 0 | I180: 0 | J180: 0 | L180: 4
A181: 0 | B181: 1 | C181: 1 | D181: 1 | E181: 0 | F181: 1 | G181: 0 | H181: 1 | I181: 1 | J181: 0 | L181: 6
A182: 0 | B182: 0 | C182: 0 | D182: 1 | E182: 1 | F182: 1 | G182: 1 | H182: 0 | I182: 1 | J182: 1 | L182: 6
A183: 0 | B183: 1 | C183: 0 | D183: 0 | E183: 1 | F183: 1 | G183: 0 | H183: 0 | I183: 0 | J183: 0 | L183: 3
A184: 1 | B184: 0 | C184: 1 | D184: 1 | E184: 1 | F184: 1 | G184: 1 | H184: 1 | I184: 0 | J184: 0 | L184: 7
A185: 0 | B185: 1 | C185: 0 | D185: 0 | E185: 0 | F185: 1 | G185: 1 | H185: 1 | I185: 0 | J185: 0 | L185: 4
A186: 1 | B186: =INT(RAND()*2) -> 0 | C186: 1 | D186: 1 | E186: 0 | F186: 1 | G186: 1 | H186: 1 | I186: 1 | J186: 1 | L186: 8
A187: 0 | B187: 1 | C187: 0 | D187: 1 | E187: 0 | F187: 0 | G187: 1 | H187: 0 | I187: 0 | J187: 0 | L187: 3
A188: 0 | B188: 0 | C188: 0 | D188: 1 | E188: 0 | F188: 0 | G188: 0 | H188: 0 | I188: 1 | J188: 0 | L188: 2
A189: 1 | B189: 0 | C189: 0 | D189: 0 | E189: 1 | F189: 0 | G189: 1 | H189: 0 | I189: 0 | J189: 0 | L189: 3
A190: 0 | B190: 1 | C190: 1 | D190: 0 | E190: 1 | F190: 0 | G190: 1 | H190: 1 | I190: 0 | J190: 0 | L190: 5
A191: 1 | B191: 1 | C191: 0 | D191: 1 | E191: 0 | F191: 1 | G191: 0 | H191: 1 | I191: 1 | J191: 1 | L191: 7
A192: 0 | B192: 1 | C192: 1 | D192: 0 | E192: 0 | F192: 1 | G192: 1 | H192: 0 | I192: 1 | J192: 1 | L192: 6
A193: 0 | B193: 1 | C193: 1 | D193: 0 | E193: 1 | F193: 1 | G193: 1 | H193: 1 | I193: 1 | J193: 1 | L193: 8
A194: 1 | B194: 0 | C194: 0 | D194: 0 | E194: 0 | F194: 0 | G194: 1 | H194: 1 | I194: 0 | J194: 0 | L194: 3
A195: 0 | B195: 1 | C195: 0 | D195: 1 | E195: 1 | F195: 1 | G195: 0 | H195: 0 | I195: 1 | J195: 1 | L195: 6
A196: 0 | B196: =INT(RAND()*2) -> 0 | C196: 1 | D196: 1 | E196: 0 | F196: 0 | G196: 1 | H196: 0 | I196: 1 | J196: 1 | L196: 5
A197: 1 | B197: 1 | C197: 1 | D197: 0 | E197: 1 | F197: 1 | G197: 0 | H197: 0 | I197: 0 | J197: 1 | L197: 6
A198: 0 | B198: 0 | C198: 1 | D198: 1 | E198: 0 | F198: 1 | G198: 1 | H198: 0 | I198: 0 | J198: 0 | L198: 4
A199: 1 | B199: 0 | C199: 1 | D199: 1 | E199: 1 | F199: 1 | G199: 1 | H199: 1 | I199: 1 | J199: 0 | L199: 8
A200: 0 | B200: 0 | C200: 1 | D200: 0 | E200: 1 | F200: 1 | G200: 0 | H200: 0 | I200: 1 | J200: 0 | L200: 4
A201: 0 | B201: 1 | C201: 1 | D201: 1 | E201: 0 | F201: 0 | G201: 0 | H201: 0 | I201: 1 | J201: 1 | L201: 5
A202: 1 | B202: 0 | C202: 0 | D202: 1 | E202: 1 | F202: 1 | G202: 0 | H202: 0 | I202: 1 | J202: 0 | L202: 5
A203: 0 | B203: 1 | C203: 0 | D203: 1 | E203: 0 | F203: 0 | G203: 0 | H203: 0 | I203: 1 | J203: 1 | L203: =SUM(A203:J203) -> 4
A204: =INT(RAND()*2) -> 0 | B204: 1 | C204: 0 | D204: 1 | E204: 1 | F204: 0 | G204: 1 | H204: 0 | I204: 0 | J204: 1 | L204: 5
... 4805 more rows

Sheet Vendas
A1: Previsão de Vendas | H1: Simulação | I1: Volume de Vendas | J1: Custo Unitário | K1: Preço de Vendas | M1: Lucro Líquido | O1: Plotando Histograma
D2: Min | E2: Max | H2: 1 | I2: 72556 | J2: 7 | K2: 10 | M2: 117668 | O2: Min | P2: -100000
A3: Custo Fixo | B3: 100000 | D3: - | E3: - | H3: 2 | I3: 64395 | J3: 5 | K3: 8 | M3: 93185 | O3: Max | P3: 550000
A4: Volume de Vendas | B4: =AVERAGE(I2:I1001) -> 65108.243 | D4: 50000 | E4: 80000 | H4: 3 | I4: 78735 | J4: 7 | K4: 11 | M4: 214940 | O4: N: | P4: =COUNT(M:M) -> 1000
A5: Custo Unitário | B5: =AVERAGE(J2:J1001) -> 5.94 | D5: 5 | E5: 8 | H5: 4 | I5: 50324 | J5: 6 | K5: 11 | M5: 151620
A6: Preço de Venda | B6: =AVERAGE(K2:K1001) -> 9.498 | D6: 8 | E6: 12 | H6: 5 | I6: 65456 | J6: 5 | K6: 8 | M6: 96368 | O6: Lucro Líquido | R6: Média
H7: 6 | I7: 71620 | J7: 5 | K7: 8 | M7: 114860 | O7: Bins | P7: Frequência | R7: Freq2 | S7: Média
H8: 7 | I8: 57006 | J8: 7 | K8: 10 | M8: 71018 | O8: =P2 -> -100000 | P8: =FREQUENCY(M2:M1002,O8:O58) -> 0 | R8: =FREQUENCY(B13,O8:O580) -> 0 | S8: =R8*80 -> 0
A9: Lucro Líquido | B9: =B4*(B6-B5) - B3 -> 131655.1286 | C9: Lucro = Volume de Vendas * (Preço Unitário- Custo Unitário) - Custo Fixo | H9: 8 | I9: 59671 | J9: 5 | K9: 11 | M9: 258026 | O9: =($P$3-$P$2)/50+O8 -> -87000 | P9: 0 | R9: 0 | S9: =R9*80 -> 0
H10: 9 | I10: 63945 | J10: 5 | K10: 10 | M10: 219725 | O10: =($P$3-$P$2)/50+O9 -> -74000 | P10: 0 | R10: 0 | S10: 0
A11: Resumo das Estatísticas | H11: 10 | I11: 52032 | J11: 7 | K11: 11 | M11: 108128 | O11: =($P$3-$P$2)/50+O10 -> -61000 | P11: 0 | R11: 0 | S11: 0
A12: Amostra (n) | B12: 1000 | H12: 11 | I12: 78471 | J12: 5 | K12: 9 | M12: 213884 | O12: -48000 | P12: 4 | R12: 0 | S12: 0
A13: Média Amostral | B13: =AVERAGE(M2:M1001) -> 131422.031 | H13: 12 | I13: 62800 | J13: 7 | K13: 8 | M13: -37200 | O13: -35000 | P13: 29 | R13: 0 | S13: 0
A14: Desvio Padrão | B14: =STDEV(M2:M1001) -> 96207.54225 | H14: 13 | I14: 79258 | J14: 7 | K14: 11 | M14: 217032 | O14: -22000 | P14: 36 | R14: 0 | S14: 0
A15: Máximo | B15: =MAX(M:M) -> 378272 | H15: 14 | I15: 56701 | J15: 7 | K15: 10 | M15: 70103 | O15: -9000 | P15: 7 | R15: 0 | S15: 0
A16: Mínimo | B16: =MIN(M:M) -> -49667 | H16: 15 | I16: 56117 | J16: 5 | K16: 8 | M16: 68351 | O16: 4000 | P16: 13 | R16: 0 | S16: 0
A17: Distorção | B17: =SKEW(M:M) -> 0.2064083543 | H17: 16 | I17: 78452 | J17: 6 | K17: 8 | M17: 56904 | O17: 17000 | P17: 35 | R17: 0 | S17: 0
A18: Curtose | B18: =KURT(M:M) -> -0.6025687874 | H18: 17 | I18: 72265 | J18: 5 | K18: 10 | M18: 261325 | O18: 30000 | P18: 32 | R18: 0 | S18: 0
A19: 1º Quartil | B19: =QUARTILE(M:M,1) -> 57182.75 | H19: 18 | I19: 56454 | J19: 6 | K19: 10 | M19: 125816 | O19: 43000 | P19: 34 | R19: 0 | S19: 0
A20: 3º Quartil | B20: =QUARTILE(M:M,3) -> 201541 | H20: 19 | I20: 59523 | J20: 6 | K20: 9 | M20: 78569 | O20: 56000 | P20: 49 | R20: 0 | S20: 0
A21: Mediana | B21: =MEDIAN(M:M) -> 124179.5 | H21: 20 | I21: 67389 | J21: 6 | K21: 10 | M21: 169556 | O21: 69000 | P21: 42 | R21: 0 | S21: 0
H22: 21 | I22: 69260 | J22: 5 | K22: 8 | M22: 107780 | O22: 82000 | P22: 47 | R22: 0 | S22: 0
A23: Probabilidades do Lucro | H23: 22 | I23: 55777 | J23: 7 | K23: 11 | M23: 123108 | O23: 95000 | P23: 41 | R23: 0 | S23: 0
A24: Lucro > 0 | B24: =1-PERCENTRANK(M:M,0) -> 0.924 | H24: 23 | I24: 59390 | J24: 7 | K24: 9 | M24: 18780 | O24: 108000 | P24: 55 | R24: 0 | S24: 0
A25: Lucro < -22.000 | B25: =PERCENTRANK(M:M,-22000,4) -> 0.0686 | H25: 24 | I25: 50052 | J25: 5 | K25: 11 | M25: 200312 | O25: 121000 | P25: 57 | R25: 0 | S25: 0
A26: Lucro > 100.000 | B26: =1-PERCENTRANK(M:M,100000,4) -> 0.6209 | H26: 25 | I26: 75235 | J26: 6 | K26: 8 | M26: 50470 | O26: 134000 | P26: 69 | R26: 1 | S26: =R26*80 -> 80
A27: -22.000 < Lucro < 100.000 | B27: =1-(B25+B26) -> 0.3105 | H27: 26 | I27: 64229 | J27: 7 | K27: 8 | M27: -35771 | O27: 147000 | P27: 41 | R27: 0 | S27: 0
H28: 27 | I28: 69573 | J28: 5 | K28: 11 | M28: 317438 | O28: 160000 | P28: 39 | R28: 0 | S28: 0
A29: Percentís | H29: 28 | I29: 51715 | J29: 6 | K29: 10 | M29: 106860 | O29: 173000 | P29: 33 | R29: 0 | S29: 0
A30: Q(0.05) | B30: =PERCENTILE(M:M,0.05) -> -29955.8 | H30: 29 | I30: 54667 | J30: 5 | K30: 10 | M30: 173335 | O30: 186000 | P30: 34 | R30: 0 | S30: 0
A31: Q(0.95) | B31: =PERCENTILE(M:M,0.95) -> 294794.75 | H31: 30 | I31: 75338 | J31: 6 | K31: 9 | M31: 126014 | O31: 199000 | P31: 40 | R31: 0 | S31: 0
H32: 31 | I32: 56613 | J32: 6 | K32: 8 | M32: 13226 | O32: 212000 | P32: 44 | R32: 0 | S32: 0
H33: 32 | I33: 55142 | J33: 5 | K33: 8 | M33: 65426 | O33: 225000 | P33: 44 | R33: 0 | S33: 0
H34: 33 | I34: 69794 | J34: 6 | K34: 9 | M34: 109382 | O34: 238000 | P34: 25 | R34: 0 | S34: 0
H35: 34 | I35: 53018 | J35: 5 | K35: 10 | M35: 165090 | O35: 251000 | P35: 18 | R35: 0 | S35: 0
H36: 35 | I36: 66768 | J36: 7 | K36: 9 | M36: 33536 | O36: 264000 | P36: 24 | R36: 0 | S36: 0
H37: 36 | I37: 50743 | J37: 5 | K37: 9 | M37: 102972 | O37: 277000 | P37: 26 | R37: 0 | S37: 0
H38: 37 | I38: 66401 | J38: 6 | K38: 11 | M38: 232005 | O38: 290000 | P38: 22 | R38: 0 | S38: 0
H39: 38 | I39: 75467 | J39: 7 | K39: 8 | M39: -24533 | O39: 303000 | P39: 23 | R39: 0 | S39: 0
H40: 39 | I40: 60545 | J40: 7 | K40: 8 | M40: -39455 | O40: 316000 | P40: 9 | R40: 0 | S40: 0
H41: 40 | I41: 64232 | J41: 6 | K41: 9 | M41: 92696 | O41: 329000 | P41: 5 | R41: 0 | S41: 0
H42: 41 | I42: 57098 | J42: 5 | K42: 10 | M42: 185490 | O42: 342000 | P42: 9 | R42: 0 | S42: 0
H43: 42 | I43: 66576 | J43: 7 | K43: 9 | M43: 33152 | O43: 355000 | P43: 7 | R43: 0 | S43: 0
H44: 43 | I44: 54729 | J44: 5 | K44: 8 | M44: 64187 | O44: 368000 | P44: 2 | R44: 0 | S44: 0
H45: 44 | I45: 71782 | J45: 5 | K45: 9 | M45: 187128 | O45: 381000 | P45: 5 | R45: 0 | S45: 0
H46: 45 | I46: 72104 | J46: 7 | K46: 10 | M46: 116312 | O46: 394000 | P46: 0 | R46: 0 | S46: 0
H47: 46 | I47: 74839 | J47: 7 | K47: 8 | M47: -25161 | O47: 407000 | P47: 0 | R47: 0 | S47: 0
H48: 47 | I48: 61915 | J48: 5 | K48: 8 | M48: 85745 | O48: 420000 | P48: 0 | R48: 0 | S48: 0
H49: 48 | I49: 72680 | J49: 5 | K49: 9 | M49: 190720 | O49: 433000 | P49: 0 | R49: 0 | S49: 0
H50: 49 | I50: 57524 | J50: 6 | K50: 8 | M50: 15048 | O50: 446000 | P50: 0 | R50: 0 | S50: 0
H51: 50 | I51: 79753 | J51: 7 | K51: 10 | M51: 139259 | O51: 459000 | P51: 0 | R51: 0 | S51: 0
H52: 51 | I52: 67541 | J52: 6 | K52: 8 | M52: 35082 | O52: 472000 | P52: 0 | R52: 0 | S52: 0
H53: 52 | I53: 79486 | J53: 6 | K53: 11 | M53: 297430 | O53: 485000 | P53: 0 | R53: 0 | S53: 0
H54: 53 | I54: 51136 | J54: 7 | K54: 9 | M54: 2272 | O54: 498000 | P54: 0 | R54: 0 | S54: 0
H55: 54 | I55: 75726 | J55: 6 | K55: 11 | M55: 278630 | O55: 511000 | P55: 0 | R55: 0 | S55: 0
H56: 55 | I56: 74418 | J56: 7 | K56: 10 | M56: 123254 | O56: 524000 | P56: 0 | R56: 0 | S56: 0
H57: 56 | I57: 55687 | J57: 5 | K57: 11 | M57: 234122 | O57: 537000 | P57: 0 | R57: 0 | S57: 0
H58: 57 | I58: 65667 | J58: 7 | K58: 11 | M58: 162668 | O58: 550000 | P58: 0 | R58: 0 | S58: 0
H59: 58 | I59: 73489 | J59: 5 | K59: 11 | M59: 340934 | O59: Mais | P59: 0 | R59: 0 | S59: 0
H60: 59 | I60: 64760 | J60: 6 | K60: 9 | M60: 94280
H61: 60 | I61: 70852 | J61: 5 | K61: 8 | M61: 112556
H62: 61 | I62: 69577 | J62: 5 | K62: 9 | M62: 178308
H63: 62 | I63: 78993 | J63: 6 | K63: 10 | M63: 215972
H64: 63 | I64: 59719 | J64: 7 | K64: 9 | M64: 19438
H65: 64 | I65: 73295 | J65: 7 | K65: 11 | M65: 193180
H66: 65 | I66: 65340 | J66: 7 | K66: 9 | M66: 30680
H67: 66 | I67: 79822 | J67: 7 | K67: 11 | M67: 219288
H68: 67 | I68: 66411 | J68: 6 | K68: 11 | M68: 232055
H69: 68 | I69: 60221 | J69: 5 | K69: 8 | M69: 80663
H70: 69 | I70: 55224 | J70: 6 | K70: 9 | M70: 65672
H71: 70 | I71: 69096 | J71: 7 | K71: 10 | M71: 107288
H72: 71 | I72: 62452 | J72: 5 | K72: 11 | M72: 274712
H73: 72 | I73: 75393 | J73: 5 | K73: 8 | M73: 126179
H74: 73 | I74: 74575 | J74: 7 | K74: 10 | M74: 123725
H75: 74 | I75: 76880 | J75: 7 | K75: 11 | M75: 207520
H76: 75 | I76: 77986 | J76: 7 | K76: 9 | M76: 55972
H77: 76 | I77: 64278 | J77: 5 | K77: 9 | M77: 157112
H78: 77 | I78: 52594 | J78: 5 | K78: 9 | M78: 110376
H79: 78 | I79: 59088 | J79: 6 | K79: 11 | M79: 195440
H80: 79 | I80: 75220 | J80: 6 | K80: 10 | M80: 200880
H81: 80 | I81: 66711 | J81: 7 | K81: 9 | M81: 33422
H82: 81 | I82: 70623 | J82: 5 | K82: 9 | M82: 182492
H83: 82 | I83: 63889 | J83: 5 | K83: 9 | M83: 155556
H84: 83 | I84: 75449 | J84: 7 | K84: 9 | M84: 50898
H85: 84 | I85: 57050 | J85: 6 | K85: 9 | M85: 71150
H86: 85 | I86: 57922 | J86: 7 | K86: 10 | M86: 73766
H87: 86 | I87: 75614 | J87: 6 | K87: 9 | M87: 126842
H88: 87 | I88: 53593 | J88: 6 | K88: 10 | M88: 114372
H89: 88 | I89: 61826 | J89: 7 | K89: 10 | M89: 85478
H90: 89 | I90: 64954 | J90: 5 | K90: 10 | M90: 224770
H91: 90 | I91: 76165 | J91: 6 | K91: 9 | M91: 128495
H92: 91 | I92: 50228 | J92: 5 | K92: 10 | M92: 151140
H93: 92 | I93: 74909 | J93: 7 | K93: 10 | M93: 124727
H94: 93 | I94: 64162 | J94: 5 | K94: 10 | M94: 220810
H95: 94 | I95: 53914 | J95: 7 | K95: 11 | M95: 115656
H96: 95 | I96: 51113 | J96: 6 | K96: 10 | M96: 104452
H97: 96 | I97: 70157 | J97: 5 | K97: 11 | M97: 320942
H98: 97 | I98: 58256 | J98: 6 | K98: 11 | M98: 191280
H99: 98 | I99: 50119 | J99: 5 | K99: 11 | M99: 200714
H100: 99 | I100: 54225 | J100: 7 | K100: 9 | M100: 8450
H101: 100 | I101: 51573 | J101: 5 | K101: 8 | M101: 54719
H102: 101 | I102: 75988 | J102: 6 | K102: 8 | M102: 51976
H103: 102 | I103: 62821 | J103: 7 | K103: 10 | M103: 88463
H104: 103 | I104: 54288 | J104: 5 | K104: 11 | M104: 225728
H105: 104 | I105: 50965 | J105: 7 | K105: 11 | M105: 103860
H106: 105 | I106: 55437 | J106: 5 | K106: 9 | M106: 121748
H107: 106 | I107: 78256 | J107: 7 | K107: 8 | M107: -21744
H108: 107 | I108: 64806 | J108: 5 | K108: 8 | M108: 94418
H109: 108 | I109: 73099 | J109: 7 | K109: 10 | M109: 119297
H110: 109 | I110: 64791 | J110: 6 | K110: 8 | M110: 29582
H111: 110 | I111: 79760 | J111: 7 | K111: 8 | M111: -20240
H112: 111 | I112: 57594 | J112: 6 | K112: 9 | M112: 72782
H113: 112 | I113: 78357 | J113: 5 | K113: 11 | M113: 370142
H114: 113 | I114: 50623 | J114: 5 | K114: 9 | M114: 102492
H115: 114 | I115: 64175 | J115: 5 | K115: 10 | M115: 220875
H116: 115 | I116: 59809 | J116: 6 | K116: 8 | M116: 19618
H117: 116 | I117: 62892 | J117: 7 | K117: 11 | M117: 151568
H118: 117 | I118: 73680 | J118: 6 | K118: 8 | M118: 47360
H119: 118 | I119: 65754 | J119: 6 | K119: 10 | M119: 163016
H120: 119 | I120: 78480 | J120: 5 | K120: 11 | M120: 370880
H121: 120 | I121: 56284 | J121: 5 | K121: 8 | M121: 68852
H122: 121 | I122: 72158 | J122: 5 | K122: 9 | M122: 188632
H123: 122 | I123: 67569 | J123: 5 | K123: 8 | M123: 102707
H124: 123 | I124: 62540 | J124: 5 | K124: 9 | M124: 150160
H125: 124 | I125: 66698 | J125: 7 | K125: 8 | M125: -33302
H126: 125 | I126: 52486 | J126: 5 | K126: 9 | M126: 109944
H127: 126 | I127: 70416 | J127: 5 | K127: 8 | M127: 111248
H128: 127 | I128: 52359 | J128: 6 | K128: 9 | M128: 57077
H129: 128 | I129: 63539 | J129: 7 | K129: 9 | M129: 27078
H130: 129 | I130: 77606 | J130: 5 | K130: 10 | M130: 288030
H131: 130 | I131: 79222 | J131: 7 | K131: 11 | M131: 216888
H132: 131 | I132: 66772 | J132: 5 | K132: 11 | M132: 300632
H133: 132 | I133: 57609 | J133: 5 | K133: 11 | M133: 245654
H134: 133 | I134: 52756 | J134: 5 | K134: 8 | M134: 58268
H135: 134 | I135: 66953 | J135: 5 | K135: 8 | M135: 100859
H136: 135 | I136: 57615 | J136: 7 | K136: 11 | M136: 130460
H137: 136 | I137: 68761 | J137: 6 | K137: 11 | M137: 243805
H138: 137 | I138: 58749 | J138: 7 | K138: 8 | M138: -41251
H139: 138 | I139: 66016 | J139: 6 | K139: 11 | M139: 230080
H140: 139 | I140: 51750 | J140: 7 | K140: 10 | M140: 55250
H141: 140 | I141: 71058 | J141: 7 | K141: 11 | M141: 184232
H142: 141 | I142: 62756 | J142: 7 | K142: 8 | M142: -37244
H143: 142 | I143: 57169 | J143: 6 | K143: 11 | M143: 185845
H144: 143 | I144: 60601 | J144: 5 | K144: 11 | M144: 263606
H145: 144 | I145: 65430 | J145: 5 | K145: 10 | M145: 227150
H146: 145 | I146: 56588 | J146: 5 | K146: 9 | M146: 126352
H147: 146 | I147: 75924 | J147: 5 | K147: 10 | M147: 279620
H148: 147 | I148: 57185 | J148: 6 | K148: 9 | M148: 71555
H149: 148 | I149: 69825 | J149: 5 | K149: 8 | M149: 109475
H150: 149 | I150: 52473 | J150: 5 | K150: 11 | M150: 214838
H151: 150 | I151: 56457 | J151: 7 | K151: 9 | M151: 12914
H152: 151 | I152: 50639 | J152: 5 | K152: 10 | M152: 153195
H153: 152 | I153: 56872 | J153: 5 | K153: 8 | M153: 70616
H154: 153 | I154: 56342 | J154: 7 | K154: 10 | M154: 69026
H155: 154 | I155: 73013 | J155: 7 | K155: 9 | M155: 46026
H156: 155 | I156: 78257 | J156: 5 | K156: 10 | M156: 291285
H157: 156 | I157: 79031 | J157: 7 | K157: 8 | M157: -20969
H158: 157 | I158: 78609 | J158: 6 | K158: 8 | M158: 57218
H159: 158 | I159: 78809 | J159: 6 | K159: 9 | M159: 136427
H160: 159 | I160: 55018 | J160: 6 | K160: 8 | M160: 10036
H161: 160 | I161: 71256 | J161: 6 | K161: 9 | M161: 113768
H162: 161 | I162: 62451 | J162: 5 | K162: 11 | M162: 274706
H163: 162 | I163: 72444 | J163: 5 | K163: 10 | M163: 262220
H164: 163 | I164: 50616 | J164: 6 | K164: 8 | M164: 1232
H165: 164 | I165: 51143 | J165: 6 | K165: 9 | M165: 53429
H166: 165 | I166: 59589 | J166: 5 | K166: 10 | M166: 197945
H167: 166 | I167: 61806 | J167: 7 | K167: 10 | M167: 85418
H168: 167 | I168: 63997 | J168: 6 | K168: 8 | M168: 27994
H169: 168 | I169: 56594 | J169: 5 | K169: 8 | M169: 69782
H170: 169 | I170: 53571 | J170: 6 | K170: 10 | M170: 114284
H171: 170 | I171: 65473 | J171: 5 | K171: 10 | M171: 227365
H172: 171 | I172: 75381 | J172: 5 | K172: 9 | M172: 201524
H173: 172 | I173: 60969 | J173: 7 | K173: 10 | M173: 82907
H174: 173 | I174: 60553 | J174: 5 | K174: 10 | M174: 202765
H175: 174 | I175: 61625 | J175: 7 | K175: 8 | M175: -38375
H176: 175 | I176: 75803 | J176: 5 | K176: 10 | M176: 279015
H177: 176 | I177: 75743 | J177: 5 | K177: 11 | M177: 354458
H178: 177 | I178: 57579 | J178: 7 | K178: 10 | M178: 72737
H179: 178 | I179: 64447 | J179: 7 | K179: 9 | M179: 28894
H180: 179 | I180: 74138 | J180: 6 | K180: 11 | M180: 270690
H181: 180 | I181: 50662 | J181: 6 | K181: 8 | M181: 1324
H182: 181 | I182: 68363 | J182: 6 | K182: 9 | M182: 105089
H183: 182 | I183: 58037 | J183: 6 | K183: 8 | M183: 16074
H184: 183 | I184: 51634 | J184: 7 | K184: 10 | M184: 54902
H185: 184 | I185: 51403 | J185: 5 | K185: 11 | M185: 208418
H186: 185 | I186: 76569 | J186: 5 | K186: 8 | M186: 129707
H187: 186 | I187: 57810 | J187: 6 | K187: 8 | M187: 15620
H188: 187 | I188: 73943 | J188: 6 | K188: 9 | M188: 121829
H189: 188 | I189: 54722 | J189: 5 | K189: 10 | M189: 173610
H190: 189 | I190: 66596 | J190: 7 | K190: 11 | M190: 166384
H191: 190 | I191: 59407 | J191: 7 | K191: 10 | M191: 78221
H192: 191 | I192: 50653 | J192: 6 | K192: 8 | M192: 1306
H193: 192 | I193: 51118 | J193: 5 | K193: 11 | M193: 206708
H194: 193 | I194: 71854 | J194: 7 | K194: 11 | M194: 187416
H195: 194 | I195: 55098 | J195: 5 | K195: 10 | M195: 175490
H196: 195 | I196: 72319 | J196: 5 | K196: 9 | M196: 189276
H197: 196 | I197: 64986 | J197: 5 | K197: 10 | M197: 224930
H198: 197 | I198: 50551 | J198: 7 | K198: 11 | M198: 102204
H199: 198 | I199: 57691 | J199: 6 | K199: 10 | M199: 130764
H200: 199 | I200: 64995 | J200: 5 | K200: 9 | M200: 159980
... 801 more rows

Sheet Preco Acao
A1: Trajetória de Preço de Ação
L4: S -1 | M4: S -2 | N4: S -3 | O4: S -4 | P4: S -5 | Q4: S -6
J5: Período | K5: Tempo | L5: S + DS | M5: S + DS | N5: S + DS | O5: S + DS | P5: S + DS | Q5: S + DS
J6: 0 | K6: 0 | L6: =$B$17 -> 567 | M6: 567 | N6: 567 | O6: 567 | P6: 567 | Q6: 567
J7: =J6+1 -> 1 | K7: =K6+$B$21 -> 0.003333333333 | L7: =+$B$19*L6*($B$21)+$B$20*L6*NORMINV(RAND(),0,1)*($B$21)^0.5+L6 -> 564.9019256 | M7: =+$B$19*M6*($B$21)+$B$20*M6*NORMINV(RAND(),0,1)*($B$21)^0.5+M6 -> 566.1380551 | N7: =+$B$19*N6*($B$21)+$B$20*N6*NORMINV(RAND(),0,1)*($B$21)^0.5+N6 -> 566.9231715 | O7: =+$B$19*O6*($B$21)+$B$20*O6*NORMINV(RAND(),0,1)*($B$21)^0.5+O6 -> 566.3798531 | P7: =+$B$19*P6*($B$21)+$B$20*P6*NORMINV(RAND(),0,1)*($B$21)^0.5+P6 -> 565.4946642 | Q7: =+$B$19*Q6*($B$21)+$B$20*Q6*NORMINV(RAND(),0,1)*($B$21)^0.5+Q6 -> 565.6278505
J8: 2 | K8: 0.006666666667 | L8: 563.2712453 | M8: 567.1922616 | N8: 566.0955832 | O8: 566.2203942 | P8: 564.9576886 | Q8: 565.3861256
J9: 3 | K9: 0.01 | L9: 564.1313798 | M9: 568.9398288 | N9: 565.1759212 | O9: 567.4735117 | P9: 564.9386535 | Q9: 565.450867
J10: 4 | K10: 0.01333333333 | L10: 564.3318884 | M10: 569.9539184 | N10: 566.8438838 | O10: 568.3180268 | P10: 565.9238185 | Q10: 564.8756904
J11: 5 | K11: 0.01666666667 | L11: 566.585436 | M11: 569.328194 | N11: 567.7296706 | O11: 566.9594102 | P11: 565.6242862 | Q11: 564.32158
J12: 6 | K12: 0.02 | L12: 567.542881 | M12: 570.2410158 | N12: 567.6680431 | O12: 566.7404013 | P12: 564.8679446 | Q12: 563.8100981
J13: 7 | K13: 0.02333333333 | L13: 567.9577839 | M13: 570.9308079 | N13: 567.5214033 | O13: 566.6985473 | P13: 564.2731801 | Q13: 562.7799787
J14: 8 | K14: 0.02666666667 | L14: 567.7779809 | M14: 572.0732354 | N14: 568.2526339 | O14: 567.6850828 | P14: 564.9964087 | Q14: 562.1021744
A15: Exemplo numérico (pressione F9 para gerar novos números aleatórios) | J15: 9 | K15: 0.03 | L15: 568.6199552 | M15: 572.5010321 | N15: 567.1458573 | O15: 568.8295865 | P15: 564.6444959 | Q15: 562.560921
J16: 10 | K16: 0.03333333333 | L16: 568.061795 | M16: 572.0650622 | N16: 566.714913 | O16: 568.9027204 | P16: 564.9244102 | Q16: 562.2170269
A17: Preço da ação em to t=0 | B17: 567 | J17: 11 | K17: 0.03666666667 | L17: 567.8212944 | M17: 571.7043247 | N17: 565.6025065 | O17: 568.4905307 | P17: 563.59034 | Q17: 562.6682515
A18: Tempo (T) | B18: 1 | C18: ano(s) | J18: 12 | K18: 0.04 | L18: 565.8374494 | M18: 572.1721284 | N18: 565.2849049 | O18: 568.8943922 | P18: 563.6713801 | Q18: 564.5018734
A19: Retorno esperado (m) | B19: =AVERAGE(D52:D1007) -> 0.001559737679 | J19: 13 | K19: 0.04333333333 | L19: 565.1953935 | M19: 572.2398015 | N19: 566.4849933 | O19: 568.0850478 | P19: 564.4015195 | Q19: 564.7124883
A20: Volatilidade (s) | B20: =STDEV(D52:D1007) -> 0.02223804191 | J20: 14 | K20: 0.04666666667 | L20: 564.4784959 | M20: 571.3374146 | N20: 566.3992954 | O20: 568.6771172 | P20: 565.112147 | Q20: 563.2132552
A21: D T | B21: =B18/300 -> 0.003333333333 | J21: 15 | K21: 0.05 | L21: 564.131227 | M21: 570.6556866 | N21: 567.5902427 | O21: 569.4435201 | P21: 564.6647055 | Q21: 563.7669534
J22: 16 | K22: 0.05333333333 | L22: 564.3607353 | M22: 570.756588 | N22: 566.4288325 | O22: 568.813308 | P22: 563.7641889 | Q22: 563.9901615
J23: 17 | K23: 0.05666666667 | L23: 564.2907194 | M23: 568.9924015 | N23: 567.0747933 | O23: 567.7745305 | P23: 563.9047174 | Q23: 564.7162917
J24: 18 | K24: 0.06 | L24: 563.6373015 | M24: 568.817331 | N24: 567.1193487 | O24: 567.8730456 | P24: 563.643314 | Q24: 565.0837844
J25: 19 | K25: 0.06333333333 | L25: 564.613265 | M25: 569.9400519 | N25: 566.3044355 | O25: 566.8904952 | P25: 562.9870075 | Q25: 563.7339524
J26: 20 | K26: 0.06666666667 | L26: 565.8096665 | M26: 571.4342526 | N26: 566.8509202 | O26: 567.5011821 | P26: 562.552177 | Q26: 562.4612684
J27: 21 | K27: 0.07 | L27: 565.906592 | M27: 570.9711928 | N27: 566.3104598 | O27: 566.5687853 | P27: 562.6623273 | Q27: 564.2862355
J28: 22 | K28: 0.07333333333 | L28: 565.6602649 | M28: 572.0296129 | N28: 566.3737257 | O28: 565.8424435 | P28: 563.1098596 | Q28: 564.3031947
J29: 23 | K29: 0.07666666667 | L29: 564.6801704 | M29: 572.6811457 | N29: 567.7861898 | O29: 565.2580299 | P29: 562.3363426 | Q29: 563.055182
J30: 24 | K30: 0.08 | L30: 565.6487403 | M30: 572.4042184 | N30: 568.6893821 | O30: 565.4137716 | P30: 562.4890385 | Q30: 561.6787794
J31: 25 | K31: 0.08333333333 | L31: 565.7449209 | M31: 570.9819509 | N31: 569.8483449 | O31: 565.8788877 | P31: 562.6070114 | Q31: 561.4367568
J32: 26 | K32: 0.08666666667 | L32: 565.8681012 | M32: 571.1641969 | N32: 570.6733864 | O32: 565.2251984 | P32: 562.4281313 | Q32: 561.4632318
J33: 27 | K33: 0.09 | L33: 565.8960058 | M33: 570.8730939 | N33: 571.17835 | O33: 564.9277572 | P33: 561.8649377 | Q33: 561.596715
J34: 28 | K34: 0.09333333333 | L34: 565.4269343 | M34: 571.7250683 | N34: 571.8261425 | O34: 564.7290065 | P34: 561.5990181 | Q34: 561.6650049
J35: 29 | K35: 0.09666666667 | L35: 565.477518 | M35: 571.2359973 | N35: 572.2828665 | O35: 564.3364212 | P35: 561.6927696 | Q35: 561.883818
J36: 30 | K36: 0.1 | L36: 565.533007 | M36: 570.5371178 | N36: 571.3663729 | O36: 563.9843827 | P36: 561.6119956 | Q36: 562.4979312
J37: 31 | K37: 0.1033333333 | L37: 565.4201161 | M37: 570.9995972 | N37: 571.2996528 | O37: 563.9853481 | P37: 562.0821968 | Q37: 561.5449364
J38: 32 | K38: 0.1066666667 | L38: 564.6736696 | M38: 570.9107199 | N38: 571.3929447 | O38: 564.5818448 | P38: 561.8281922 | Q38: 561.7331418
J39: 33 | K39: 0.11 | L39: 563.7800864 | M39: 571.1605169 | N39: 570.5503515 | O39: 563.8192738 | P39: 563.290863 | Q39: 560.3284976
J40: 34 | K40: 0.1133333333 | L40: 563.021347 | M40: 572.2195285 | N40: 571.6311622 | O40: 564.6635271 | P40: 564.0416101 | Q40: 559.7080186
J41: 35 | K41: 0.1166666667 | L41: 562.1660164 | M41: 570.7693847 | N41: 572.1827915 | O41: 565.313545 | P41: 563.1783136 | Q41: 560.3307118
J42: 36 | K42: 0.12 | L42: 561.9128438 | M42: 569.6261223 | N42: 573.3758008 | O42: 565.7713012 | P42: 561.6525148 | Q42: 561.4869294
J43: 37 | K43: 0.1233333333 | L43: 562.4640129 | M43: 570.6817586 | N43: 572.74298 | O43: 566.011156 | P43: 562.4352411 | Q43: 560.6863211
J44: 38 | K44: 0.1266666667 | L44: 563.9881791 | M44: 570.4152043 | N44: 572.9415873 | O44: 566.3301295 | P44: 562.5541927 | Q44: 561.7692697
J45: 39 | K45: 0.13 | L45: 563.9034977 | M45: 570.1049778 | N45: 573.3969387 | O45: 566.3124906 | P45: 561.9671079 | Q45: 560.2930627
J46: 40 | K46: 0.1333333333 | L46: 563.9266285 | M46: 570.2992218 | N46: 572.8282881 | O46: 565.9891941 | P46: 562.2650598 | Q46: 560.3381612
J47: 41 | K47: 0.1366666667 | L47: 563.7505031 | M47: 570.87136 | N47: 572.3572206 | O47: 565.449086 | P47: 562.2781156 | Q47: 561.5536681
J48: 42 | K48: 0.14 | L48: 563.7414462 | M48: 571.4574462 | N48: 571.4015357 | O48: 564.2099918 | P48: 562.4549175 | Q48: 560.9713964
J49: 43 | K49: 0.1433333333 | L49: 563.4749353 | M49: 572.3499561 | N49: 570.4531556 | O49: 563.0981338 | P49: 561.8393775 | Q49: 560.8766595
J50: 44 | K50: 0.1466666667 | L50: 563.968451 | M50: 572.6065492 | N50: 569.6769749 | O50: 562.9623481 | P50: 561.7090434 | Q50: 560.116563
A51: Data | B51: Adj Fechamento | C51: Retorno Diário | D51: % Retorno Diário | J51: 45 | K51: 0.15 | L51: 563.9281122 | M51: 572.5666349 | N51: 569.5428012 | O51: 563.4110097 | P51: 562.9518101 | Q51: 559.5814471
A52: 2008-06-06 | B52: 567 | C52: =(B52-B53) -> -19.3 | D52: =(B52-B53)/B52 -> -0.03403880071 | J52: 46 | K52: 0.1533333333 | L52: 563.5845418 | M52: 573.1384225 | N52: 569.840418 | O52: 563.4027506 | P52: 563.2584473 | Q52: 558.4589514
A53: 2008-06-05 | B53: 586.3 | C53: =(B53-B54) -> 14.08 | D53: =(B53-B54)/B53 -> 0.02401500938 | J53: 47 | K53: 0.1566666667 | L53: 564.562887 | M53: 572.7609683 | N53: 569.7530903 | O53: 563.7869455 | P53: 562.7219803 | Q53: 559.0732228
A54: 2008-06-04 | B54: 572.22 | C54: 4.92 | D54: 0.008598091643 | J54: 48 | K54: 0.16 | L54: 565.4079665 | M54: 572.2726667 | N54: 570.0570191 | O54: 564.1707144 | P54: 563.2987872 | Q54: 558.7803675
A55: 2008-06-03 | B55: 567.3 | C55: -7.7 | D55: -0.0135730654 | J55: 49 | K55: 0.1633333333 | L55: 565.2147733 | M55: 572.1877514 | N55: 570.8827635 | O55: 563.7342144 | P55: 563.3281579 | Q55: 557.8936778
A56: 2008-06-02 | B56: 575 | C56: -10.8 | D56: -0.0187826087 | J56: 50 | K56: 0.1666666667 | L56: 565.0723914 | M56: 572.2734506 | N56: 570.227877 | O56: 563.4235675 | P56: 563.2408063 | Q56: 558.271875
A57: 2008-05-30 | B57: 585.8 | C57: 2.8 | D57: 0.004779788324 | J57: 51 | K57: 0.17 | L57: 564.4826113 | M57: 572.999141 | N57: 571.775767 | O57: 564.2079122 | P57: 562.8447766 | Q57: 557.6761089
A58: 2008-05-29 | B58: 583 | C58: 14.76 | D58: 0.02531732419 | J58: 52 | K58: 0.1733333333 | L58: 562.8140981 | M58: 572.0544439 | N58: 571.7271623 | O58: 564.8099133 | P58: 563.8768225 | Q58: 556.8132985
A59: 2008-05-28 | B59: 568.24 | C59: 7.34 | D59: 0.01291707729 | J59: 53 | K59: 0.1766666667 | L59: 563.9656483 | M59: 572.529325 | N59: 571.5017301 | O59: 564.3270889 | P59: 562.921092 | Q59: 557.0662007
A60: 2008-05-27 | B60: 560.9 | C60: 16.28 | D60: 0.0290247816 | J60: 54 | K60: 0.18 | L60: 565.5060034 | M60: 571.0835965 | N60: 571.0550884 | O60: 564.5562187 | P60: 563.6465179 | Q60: 558.535241
A61: 2008-05-23 | B61: 544.62 | C61: -4.84 | D61: -0.008886930337 | J61: 55 | K61: 0.1833333333 | L61: 564.4950906 | M61: 571.2770535 | N61: 572.1267815 | O61: 565.7299174 | P61: 563.5057471 | Q61: 558.4041714
A62: 2008-05-22 | B62: 549.46 | C62: -0.53 | D62: -0.0009645834092 | J62: 56 | K62: 0.1866666667 | L62: 563.6583928 | M62: 569.7227519 | N62: 571.7920351 | O62: 567.834566 | P62: 561.9019483 | Q62: 558.9475613
A63: 2008-05-21 | B63: 549.99 | C63: -28.61 | D63: -0.05201912762 | J63: 57 | K63: 0.19 | L63: 563.4777823 | M63: 569.626332 | N63: 571.910238 | O63: 568.4790816 | P63: 563.3388618 | Q63: 558.8559825
A64: 2008-05-20 | B64: 578.6 | C64: 1.08 | D64: 0.00186657449 | J64: 58 | K64: 0.1933333333 | L64: 564.0329747 | M64: 569.4466892 | N64: 572.6240281 | O64: 568.0479745 | P64: 562.554308 | Q64: 558.7940541
A65: 2008-05-19 | B65: 577.52 | C65: -2.55 | D65: -0.0044154315 | J65: 59 | K65: 0.1966666667 | L65: 563.2719073 | M65: 569.5961446 | N65: 572.086542 | O65: 568.5138592 | P65: 561.8964413 | Q65: 560.3649957
A66: 2008-05-16 | B66: 580.07 | C66: -0.93 | D66: -0.00160325478 | J66: 60 | K66: 0.2 | L66: 563.0725677 | M66: 569.6836919 | N66: 571.5523862 | O66: 567.6804119 | P66: 561.4878486 | Q66: 559.8313713
A67: 2008-05-15 | B67: 581 | C67: 4.7 | D67: 0.008089500861 | J67: 61 | K67: 0.2033333333 | L67: 562.1153388 | M67: 570.9232282 | N67: 572.2621065 | O67: 568.068028 | P67: 560.4410781 | Q67: 559.1518424
A68: 2008-05-14 | B68: 576.3 | C68: -6.7 | D68: -0.01162588929 | J68: 62 | K68: 0.2066666667 | L68: 561.6219823 | M68: 570.848687 | N68: 570.7102143 | O68: 568.2643478 | P68: 561.0237608 | Q68: 557.9543624
A69: 2008-05-13 | B69: 583 | C69: -1.94 | D69: -0.00332761578 | J69: 63 | K69: 0.21 | L69: 561.2957754 | M69: 570.7036512 | N69: 570.0127167 | O69: 568.5946818 | P69: 561.6992542 | Q69: 556.8019787
A70: 2008-05-12 | B70: 584.94 | C70: 11.74 | D70: 0.02007043457 | J70: 64 | K70: 0.2133333333 | L70: 561.7540113 | M70: 570.5631656 | N70: 569.9680294 | O70: 568.6812002 | P70: 561.748562 | Q70: 555.5469449
A71: 2008-05-09 | B71: 573.2 | C71: -9.81 | D71: -0.01711444522 | J71: =J70+1 -> 65 | K71: =K70+$B$21 -> 0.2166666667 | L71: =+$B$19*L70*($B$21)+$B$20*L70*NORMINV(RAND(),0,1)*($B$21)^0.5+L70 -> 563.1122201 | M71: =+$B$19*M70*($B$21)+$B$20*M70*NORMINV(RAND(),0,1)*($B$21)^0.5+M70 -> 570.9885163 | N71: =+$B$19*N70*($B$21)+$B$20*N70*NORMINV(RAND(),0,1)*($B$21)^0.5+N70 -> 570.3972486 | O71: =+$B$19*O70*($B$21)+$B$20*O70*NORMINV(RAND(),0,1)*($B$21)^0.5+O70 -> 568.0297067 | P71: =+$B$19*P70*($B$21)+$B$20*P70*NORMINV(RAND(),0,1)*($B$21)^0.5+P70 -> 562.1049975 | Q71: =+$B$19*Q70*($B$21)+$B$20*Q70*NORMINV(RAND(),0,1)*($B$21)^0.5+Q70 -> 555.3675247
A72: 2008-05-08 | B72: 583.01 | C72: 4.01 | D72: 0.006878098146 | J72: 66 | K72: 0.22 | L72: 563.7102168 | M72: 569.7008951 | N72: 570.1460001 | O72: 568.2387379 | P72: 561.922677 | Q72: 556.1410862
A73: 2008-05-07 | B73: 579 | C73: -7.36 | D73: -0.01271157168 | J73: 67 | K73: 0.2233333333 | L73: 563.5615962 | M73: 568.3272712 | N73: 570.7748872 | O73: 568.8534593 | P73: 560.9809881 | Q73: 554.5742952
A74: 2008-05-06 | B74: 586.36 | C74: -8.54 | D74: -0.01456443141 | J74: 68 | K74: 0.2266666667 | L74: 563.3835241 | M74: 567.0910194 | N74: 570.8830081 | O74: 568.4729664 | P74: 561.9230053 | Q74: 553.8090989
A75: 2008-05-05 | B75: 594.9 | C75: 13.61 | D75: 0.02287779459 | J75: 69 | K75: 0.23 | L75: 562.4752688 | M75: 567.429822 | N75: 571.1626967 | O75: 567.6461044 | P75: 561.0192484 | Q75: 554.2465968
A76: 2008-05-02 | B76: 581.29 | C76: -11.79 | D76: -0.02028247518 | J76: 70 | K76: 0.2333333333 | L76: 562.668285 | M76: 568.4118144 | N76: 571.5969795 | O76: 567.2104558 | P76: 561.1191236 | Q76: 554.4035429
A77: 2008-05-01 | B77: 593.08 | C77: 18.79 | D77: 0.0316820665 | J77: 71 | K77: 0.2366666667 | L77: 562.7352427 | M77: 567.809249 | N77: 572.3654283 | O77: 566.8129745 | P77: 559.8809374 | Q77: 554.7282256
A78: 2008-04-30 | B78: 574.29 | C78: =(B78-B79) -> 15.82 | D78: 0.02754705811 | J78: 72 | K78: 0.24 | L78: 562.5150258 | M78: 568.042475 | N78: 573.0463548 | O78: 566.7268049 | P78: 559.9118247 | Q78: 554.8833796
A79: 2008-04-29 | B79: 558.47 | C79: 6.35 | D79: 0.01137035114 | J79: 73 | K79: 0.2433333333 | L79: 563.3892804 | M79: 569.1517095 | N79: 572.5449949 | O79: 566.7386028 | P79: 560.0248597 | Q79: 553.7232257
A80: 2008-04-28 | B80: 552.12 | C80: 8.06 | D80: 0.01459827574 | J80: 74 | K80: 0.2466666667 | L80: 563.3815327 | M80: 569.3973314 | N80: 573.0975326 | O80: 566.7213179 | P80: 560.9087552 | Q80: 552.6213008
A81: 2008-04-25 | B81: 544.06 | C81: 1.02 | D81: 0.001874793221 | J81: 75 | K81: 0.25 | L81: 564.1789028 | M81: 570.2528055 | N81: 573.6753871 | O81: 566.6642493 | P81: 560.1505061 | Q81: 552.2409813
A82: 2008-04-24 | B82: 543.04 | C82: -3.45 | D82: -0.006353123159 | J82: 76 | K82: 0.2533333333 | L82: 564.0161333 | M82: 570.7058352 | N82: 573.5523625 | O82: 565.6901564 | P82: 560.8309143 | Q82: 552.8829093
A83: 2008-04-23 | B83: 546.49 | C83: -8.51 | D83: -0.01557210562 | J83: 77 | K83: 0.2566666667 | L83: 564.3191598 | M83: 569.7845639 | N83: 573.6328109 | O83: 564.7867072 | P83: 561.6281042 | Q83: 553.2948174
A84: 2008-04-22 | B84: 555 | C84: 17.21 | D84: 0.03100900901 | J84: 78 | K84: 0.26 | L84: 564.0419691 | M84: 569.3092432 | N84: 573.0984838 | O84: 566.2871306 | P84: 561.9147679 | Q84: 553.2026873
A85: 2008-04-21 | B85: 537.79 | C85: -1.62 | D85: -0.003012328232 | J85: 79 | K85: 0.2633333333 | L85: 564.7128729 | M85: 569.1507082 | N85: 572.8306026 | O85: 566.0760849 | P85: 561.7453513 | Q85: 552.1437779
A86: 2008-04-18 | B86: 539.41 | C86: 89.87 | D86: 0.1666079605 | J86: 80 | K86: 0.2666666667 | L86: 566.0093135 | M86: 570.5293335 | N86: 572.0395691 | O86: 565.7335374 | P86: 560.6545672 | Q86: 552.9291129
A87: 2008-04-17 | B87: 449.54 | C87: -5.49 | D87: -0.01221248387 | J87: 81 | K87: 0.27 | L87: 565.7797363 | M87: 569.7001071 | N87: 573.3773191 | O87: 565.2202002 | P87: 561.2636904 | Q87: 550.8860275
A88: 2008-04-16 | B88: 455.03 | C88: 8.19 | D88: 0.01799881327 | J88: 82 | K88: 0.2733333333 | L88: 565.0058216 | M88: 569.584365 | N88: 573.6308195 | O88: 564.5217322 | P88: 561.2579077 | Q88: 551.109844
A89: 2008-04-15 | B89: 446.84 | C89: -4.82 | D89: -0.01078685883 | J89: 83 | K89: 0.2766666667 | L89: 565.0837716 | M89: 569.8880026 | N89: 574.1902784 | O89: 564.7665132 | P89: 561.0995247 | Q89: 550.5846969
A90: 2008-04-14 | B90: 451.66 | C90: -5.79 | D90: -0.01281937741 | J90: 84 | K90: 0.28 | L90: 564.6877309 | M90: 569.2397615 | N90: 574.6691973 | O90: 565.1718868 | P90: 560.5347733 | Q90: 550.3310325
A91: 2008-04-11 | B91: 457.45 | C91: -11.63 | D91: -0.02542354356 | J91: 85 | K91: 0.2833333333 | L91: 563.9171051 | M91: 569.8293976 | N91: 575.320212 | O91: 565.2084046 | P91: 560.2793199 | Q91: 551.3108267
A92: 2008-04-10 | B92: 469.08 | C92: 4.89 | D92: 0.01042466104 | J92: 86 | K92: 0.2866666667 | L92: 564.0669723 | M92: 569.5879164 | N92: 575.6258463 | O92: 566.1354034 | P92: 560.9306455 | Q92: 550.5081419
A93: 2008-04-09 | B93: 464.19 | C93: -3.62 | D93: -0.007798530774 | J93: 87 | K93: 0.29 | L93: 563.6675542 | M93: 568.9402122 | N93: 574.4379288 | O93: 565.3423134 | P93: 562.0639011 | Q93: 551.2006065
A94: 2008-04-08 | B94: 467.81 | C94: -9.01 | D94: -0.01925995597 | J94: 88 | K94: 0.2933333333 | L94: 563.4289197 | M94: 568.0943833 | N94: 574.5529807 | O94: 565.5341809 | P94: 562.1197259 | Q94: 552.6109063
A95: 2008-04-07 | B95: 476.82 | C95: 5.73 | D95: 0.01201711338 | J95: 89 | K95: 0.2966666667 | L95: 563.6166754 | M95: 568.6053293 | N95: 573.659668 | O95: 564.7490272 | P95: 563.1241209 | Q95: 551.8395502
A96: 2008-04-04 | B96: 471.09 | C96: 15.97 | D96: 0.03390010401 | J96: 90 | K96: 0.3 | L96: 562.9727347 | M96: 568.311762 | N96: 573.5583903 | O96: 565.4905861 | P96: 562.8623557 | Q96: 552.3528005
A97: 2008-04-03 | B97: 455.12 | C97: -10.58 | D97: -0.02324661628 | J97: 91 | K97: 0.3033333333 | L97: 563.4798338 | M97: 568.0359913 | N97: 572.6284542 | O97: 565.0163987 | P97: 563.1446233 | Q97: 551.8477601
A98: 2008-04-02 | B98: 465.7 | C98: -0.01 | D98: -2.147305132e-05 | J98: 92 | K98: 0.3066666667 | L98: 562.9438936 | M98: 568.1225882 | N98: 572.5721488 | O98: 565.8816744 | P98: 562.6334874 | Q98: 552.3161167
A99: 2008-04-01 | B99: 465.71 | C99: 25.24 | D99: 0.05419681776 | J99: 93 | K99: 0.31 | L99: 563.6679526 | M99: 566.6276815 | N99: 572.9788724 | O99: 564.8781309 | P99: 562.1945663 | Q99: 552.0353872
A100: 2008-03-31 | B100: 440.47 | C100: 2.39 | D100: 0.005426022204 | J100: 94 | K100: 0.3133333333 | L100: 563.9619252 | M100: 566.5288374 | N100: 573.6147562 | O100: 565.7845923 | P100: 562.6326789 | Q100: 552.0831689
A101: 2008-03-28 | B101: 438.08 | C101: -6 | D101: -0.01369612856 | J101: 95 | K101: 0.3166666667 | L101: 564.0944036 | M101: 568.5240767 | N101: 574.7706583 | O101: 568.015588 | P101: 563.09068 | Q101: 552.7333306
A102: 2008-03-27 | B102: 444.08 | C102: -14.11 | D102: -0.03177355431 | J102: 96 | K102: 0.32 | L102: 564.7164206 | M102: 568.7314834 | N102: 574.2194294 | O102: 568.1031198 | P102: 562.3689973 | Q102: 552.6400243
A103: 2008-03-26 | B103: 458.19 | C103: 7.41 | D103: 0.01617233026 | J103: 97 | K103: 0.3233333333 | L103: 564.1764055 | M103: 568.623781 | N103: 573.3546668 | O103: 570.0925649 | P103: 563.5855393 | Q103: 552.7590611
A104: 2008-03-25 | B104: 450.78 | C104: -9.78 | D104: -0.02169572741 | J104: 98 | K104: 0.3266666667 | L104: 564.6044833 | M104: 569.3813723 | N104: 572.3514555 | O104: 569.8185615 | P104: 563.615736 | Q104: 553.8222084
A105: 2008-03-24 | B105: 460.56 | C105: 27.01 | D105: 0.05864599618 | J105: 99 | K105: 0.33 | L105: 564.5520173 | M105: 570.4470156 | N105: 572.9999328 | O105: 569.4780347 | P105: 561.9812703 | Q105: 554.9445389
A106: 2008-03-20 | B106: 433.55 | C106: 1.55 | D106: 0.003575135509 | J106: 100 | K106: 0.3333333333 | L106: 564.6122002 | M106: 569.7708598 | N106: 573.9741356 | O106: 569.0302653 | P106: 562.8295984 | Q106: 555.9408039
A107: 2008-03-19 | B107: 432 | C107: -7.16 | D107: -0.01657407407 | J107: 101 | K107: 0.3366666667 | L107: 565.4628048 | M107: 568.7771106 | N107: 573.5656262 | O107: 567.5947807 | P107: 562.5676565 | Q107: 555.934179
A108: 2008-03-18 | B108: 439.16 | C108: 19.29 | D108: 0.04392476546 | J108: 102 | K108: 0.34 | L108: 564.8004799 | M108: 568.7003443 | N108: 572.6256927 | O108: 567.4511774 | P108: 562.3393868 | Q108: 554.4837331
A109: 2008-03-17 | B109: 419.87 | C109: -18.05 | D109: -0.04298949675 | J109: 103 | K109: 0.3433333333 | L109: 563.4483824 | M109: 568.534699 | N109: 571.9465856 | O109: 567.2530436 | P109: 562.1989682 | Q109: 553.8485306
A110: 2008-03-14 | B110: 437.92 | C110: -5.09 | D110: -0.01162312751 | J110: 104 | K110: 0.3466666667 | L110: 564.2434029 | M110: 567.4719933 | N110: 572.9113411 | O110: 568.2711213 | P110: 562.4588139 | Q110: 554.4812965
A111: 2008-03-13 | B111: 443.01 | C111: 2.83 | D111: 0.00638811765 | J111: 105 | K111: 0.35 | L111: 565.2009186 | M111: 566.356539 | N111: 573.5740344 | O111: 569.7665019 | P111: 562.5132285 | Q111: 554.1372412
A112: 2008-03-12 | B112: 440.18 | C112: 0.34 | D112: 0.0007724112863 | J112: 106 | K112: 0.3533333333 | L112: 565.2430616 | M112: 565.9593041 | N112: 574.4658023 | O112: 568.718009 | P112: 562.1626823 | Q112: 554.3107911
A113: 2008-03-11 | B113: 439.84 | C113: 26.22 | D113: 0.0596125864 | J113: 107 | K113: 0.3566666667 | L113: 564.6622905 | M113: 566.6252352 | N113: 574.1789687 | O113: 567.9440577 | P113: 561.9275044 | Q113: 555.0584419
A114: 2008-03-10 | B114: 413.62 | C114: -19.73 | D114: -0.04770078816 | J114: 108 | K114: 0.36 | L114: 565.7223317 | M114: 566.3347269 | N114: 574.5212693 | O114: 567.1444686 | P114: 561.9922019 | Q114: 555.2401738
A115: 2008-03-07 | B115: 433.35 | C115: 0.65 | D115: 0.00149994231 | J115: 109 | K115: 0.3633333333 | L115: 565.6222784 | M115: 566.718496 | N115: 575.2041278 | O115: 566.496796 | P115: 560.6022575 | Q115: 555.4045885
A116: 2008-03-06 | B116: 432.7 | C116: -15 | D116: -0.03466605038 | J116: 110 | K116: 0.3666666667 | L116: 565.458309 | M116: 567.4572869 | N116: 575.2929708 | O116: 566.8978596 | P116: 561.1630787 | Q116: 556.154785
A117: 2008-03-05 | B117: 447.7 | C117: =(B117-B118) -> 3.1 | D117: =(B117-B118)/B117 -> 0.006924279652 | J117: 111 | K117: 0.37 | L117: 565.8576619 | M117: 566.6226628 | N117: 575.5517079 | O117: 566.0298782 | P117: 561.1166877 | Q117: 557.0351675
A118: 2008-03-04 | B118: 444.6 | C118: -12.42 | D118: -0.02793522267 | J118: 112 | K118: 0.3733333333 | L118: 567.1414243 | M118: 566.6809001 | N118: 576.0073137 | O118: 565.6097693 | P118: 560.6959974 | Q118: 558.1113504
A119: 2008-03-03 | B119: 457.02 | C119: -14.16 | D119: -0.03098332677 | J119: 113 | K119: 0.3766666667 | L119: 566.5482733 | M119: 566.7342662 | N119: 576.9702733 | O119: 565.356882 | P119: 560.8696596 | Q119: 557.8328172
A120: 2008-02-29 | B120: 471.18 | C120: -4.21 | D120: -0.00893501422 | J120: 114 | K120: 0.38 | L120: 565.0727285 | M120: 565.9972152 | N120: 575.9410906 | O120: 565.221145 | P120: 561.4804023 | Q120: 557.8767231
A121: 2008-02-28 | B121: 475.39 | C121: 2.53 | D121: 0.005321946192 | J121: 115 | K121: 0.3833333333 | L121: 566.0883085 | M121: 566.6705589 | N121: 576.3327823 | O121: 566.3044718 | P121: 560.8347836 | Q121: 559.2761475
A122: 2008-02-27 | B122: 472.86 | C122: 8.67 | D122: 0.01833523665 | J122: 116 | K122: 0.3866666667 | L122: 566.4690167 | M122: 567.6115247 | N122: 576.0429043 | O122: 566.1635348 | P122: 561.15531 | Q122: 558.572127
A123: 2008-02-26 | B123: 464.19 | C123: -22.25 | D123: -0.04793295849 | J123: 117 | K123: 0.39 | L123: 565.6512896 | M123: 568.9816378 | N123: 576.1581145 | O123: 565.4636243 | P123: 562.0789259 | Q123: 558.1012988
A124: 2008-02-25 | B124: 486.44 | C124: -21.36 | D124: -0.04391086259 | J124: 118 | K124: 0.3933333333 | L124: 564.6382278 | M124: 570.1874388 | N124: 577.1423259 | O124: 565.6105593 | P124: 562.1316603 | Q124: 560.2965593
A125: 2008-02-22 | B125: 507.8 | C125: 4.94 | D125: 0.009728239464 | J125: 119 | K125: 0.3966666667 | L125: 564.5181136 | M125: 570.468899 | N125: 577.2832573 | O125: 565.6464286 | P125: 562.2107496 | Q125: 560.3840585
A126: 2008-02-21 | B126: 502.86 | C126: -6.14 | D126: -0.0122101579 | J126: 120 | K126: 0.4 | L126: 564.5359004 | M126: 571.0730756 | N126: 577.580252 | O126: 565.5904535 | P126: 561.7716319 | Q126: 560.2227335
A127: 2008-02-20 | B127: 509 | C127: 0.05 | D127: 9.823182711e-05 | J127: 121 | K127: 0.4033333333 | L127: 563.6126755 | M127: 571.2541221 | N127: 577.9767449 | O127: 565.6174339 | P127: 562.3997451 | Q127: 559.4099704
A128: 2008-02-19 | B128: 508.95 | C128: -20.69 | D128: -0.04065232341 | J128: 122 | K128: 0.4066666667 | L128: 563.0037591 | M128: 571.1747599 | N128: 577.6780294 | O128: 565.7389572 | P128: 563.3586851 | Q128: 559.8642932
A129: 2008-02-15 | B129: 529.64 | C129: -2.61 | D129: -0.004927875538 | J129: 123 | K129: 0.41 | L129: 564.3112164 | M129: 570.776393 | N129: 578.5577178 | O129: 564.3873438 | P129: 563.8870224 | Q129: 560.3121321
A130: 2008-02-14 | B130: 532.25 | C130: -2.37 | D130: -0.004452794739 | J130: 124 | K130: 0.4133333333 | L130: 563.8715532 | M130: 570.0793831 | N130: 578.9871052 | O130: 563.9177538 | P130: 565.0087559 | Q130: 561.2720856
A131: 2008-02-13 | B131: 534.62 | C131: 16.53 | D131: 0.03091915753 | J131: 125 | K131: 0.4166666667 | L131: 563.3679945 | M131: 571.1032111 | N131: 579.0488943 | O131: 563.2279358 | P131: 565.4398092 | Q131: 562.1213514
A132: 2008-02-12 | B132: 518.09 | C132: -3.07 | D132: -0.00592561138 | J132: 126 | K132: 0.42 | L132: 563.0752742 | M132: 571.3079022 | N132: 579.0525218 | O132: 563.2215783 | P132: 565.8797765 | Q132: 561.7542599
A133: 2008-02-11 | B133: 521.16 | C133: 4.47 | D133: 0.008577020493 | J133: 127 | K133: 0.4233333333 | L133: 562.3943465 | M133: 572.3746615 | N133: 580.297519 | O133: 563.5392745 | P133: 565.6310408 | Q133: 562.0315313
A134: 2008-02-08 | B134: 516.69 | C134: 11.74 | D134: 0.02272155451 | J134: 128 | K134: 0.4266666667 | L134: 563.6151533 | M134: 571.8772972 | N134: 579.6252303 | O134: 563.2277976 | P134: 564.8861945 | Q134: 562.1593947
A135: 2008-02-07 | B135: 504.95 | C135: 3.24 | D135: 0.006416476879 | J135: =J134+1 -> 129 | K135: =K134+$B$21 -> 0.43 | L135: =+$B$19*L134*($B$21)+$B$20*L134*NORMINV(RAND(),0,1)*($B$21)^0.5+L134 -> 564.5617629 | M135: =+$B$19*M134*($B$21)+$B$20*M134*NORMINV(RAND(),0,1)*($B$21)^0.5+M134 -> 572.3212842 | N135: =+$B$19*N134*($B$21)+$B$20*N134*NORMINV(RAND(),0,1)*($B$21)^0.5+N134 -> 578.938454 | O135: =+$B$19*O134*($B$21)+$B$20*O134*NORMINV(RAND(),0,1)*($B$21)^0.5+O134 -> 563.7805333 | P135: =+$B$19*P134*($B$21)+$B$20*P134*NORMINV(RAND(),0,1)*($B$21)^0.5+P134 -> 564.8244768 | Q135: =+$B$19*Q134*($B$21)+$B$20*Q134*NORMINV(RAND(),0,1)*($B$21)^0.5+Q134 -> 562.4951418
A136: 2008-02-06 | B136: 501.71 | C136: -5.09 | D136: -0.01014530306 | J136: 130 | K136: 0.4333333333 | L136: 566.3150947 | M136: 572.0203122 | N136: 578.8154371 | O136: 563.2843315 | P136: 564.3538834 | Q136: 563.1352126
A137: 2008-02-05 | B137: 506.8 | C137: 11.37 | D137: 0.02243488556 | J137: 131 | K137: 0.4366666667 | L137: 566.4019004 | M137: 572.0549106 | N137: 579.6322174 | O137: 563.7151523 | P137: 563.2978413 | Q137: 563.6918233
A138: 2008-02-04 | B138: 495.43 | C138: -20.47 | D138: -0.04131764326 | J138: 132 | K138: 0.44 | L138: 566.865842 | M138: 571.8129481 | N138: 579.1937484 | O138: 564.4520374 | P138: 563.0924809 | Q138: 563.58686
A139: 2008-02-01 | B139: 515.9 | C139: -48.4 | D139: -0.09381663113 | J139: 133 | K139: 0.4433333333 | L139: 565.5730981 | M139: 570.6853425 | N139: 578.9322635 | O139: 565.3319595 | P139: 563.3832274 | Q139: 563.5878519
A140: 2008-01-31 | B140: 564.3 | C140: 16.03 | D140: 0.02840687578 | J140: 134 | K140: 0.4466666667 | L140: 564.8637387 | M140: 570.8600121 | N140: 579.4582484 | O140: 565.2780386 | P140: 563.7039402 | Q140: 563.0246043
A141: 2008-01-30 | B141: 548.27 | C141: -2.25 | D141: -0.004103817462 | J141: 135 | K141: 0.45 | L141: 565.1128728 | M141: 570.9993361 | N141: 581.5984236 | O141: 564.808964 | P141: 564.9053076 | Q141: 564.0570725
A142: 2008-01-29 | B142: 550.52 | C142: -5.46 | D142: -0.009917895808 | J142: 136 | K142: 0.4533333333 | L142: 565.4293014 | M142: 570.0295872 | N142: 581.4673555 | O142: 565.2124436 | P142: 564.350336 | Q142: 565.302557
A143: 2008-01-28 | B143: 555.98 | C143: -10.42 | D143: -0.01874168136 | J143: 137 | K143: 0.4566666667 | L143: 565.2604368 | M143: 571.0289574 | N143: 581.1589469 | O143: 564.216821 | P143: 564.9573022 | Q143: 567.2153974
A144: 2008-01-25 | B144: 566.4 | C144: -8.09 | D144: -0.01428319209 | J144: 138 | K144: 0.46 | L144: 565.1278476 | M144: 571.1388729 | N144: 581.4783148 | O144: 564.2489796 | P144: 563.8883499 | Q144: 567.5553811
A145: 2008-01-24 | B145: 574.49 | C145: 25.87 | D145: 0.0450312451 | J145: 139 | K145: 0.4633333333 | L145: 565.0135164 | M145: 571.5871022 | N145: 580.2208795 | O145: 564.7888149 | P145: 565.7453619 | Q145: 567.3738271
A146: 2008-01-23 | B146: 548.62 | C146: -35.73 | D146: -0.06512704604 | J146: 140 | K146: 0.4666666667 | L146: 566.2475221 | M146: 571.2897544 | N146: 580.7523 | O146: 565.4711204 | P146: 565.4424736 | Q146: 568.3775162
A147: 2008-01-22 | B147: 584.35 | C147: -15.9 | D147: -0.0272097202 | J147: 141 | K147: 0.47 | L147: 566.9755171 | M147: 571.1575197 | N147: 580.8748588 | O147: 566.8399791 | P147: 566.1056047 | Q147: 568.2131926
A148: 2008-01-18 | B148: 600.25 | C148: -0.54 | D148: -0.0008996251562 | J148: 142 | K148: 0.4733333333 | L148: 567.5427984 | M148: 572.320089 | N148: 581.4486377 | O148: 567.6014096 | P148: 566.8992988 | Q148: 567.5362934
A149: 2008-01-17 | B149: 600.79 | C149: -15.16 | D149: -0.02523344263 | J149: 143 | K149: 0.4766666667 | L149: 567.1737369 | M149: 572.296108 | N149: 581.2040191 | O149: 565.9365075 | P149: 566.5475979 | Q149: 567.0761827
A150: 2008-01-16 | B150: 615.95 | C150: -21.7 | D150: -0.03523013232 | J150: 144 | K150: 0.48 | L150: 568.1176159 | M150: 573.1164502 | N150: 580.4177182 | O150: 565.2594647 | P150: 567.0931831 | Q150: 567.5726012
A151: 2008-01-15 | B151: 637.65 | C151: -16.17 | D151: -0.02535873912 | J151: 145 | K151: 0.4833333333 | L151: 568.2822534 | M151: 572.1666417 | N151: 578.9370378 | O151: 565.4560541 | P151: 567.5400687 | Q151: 569.3159828
A152: 2008-01-14 | B152: 653.82 | C152: 15.57 | D152: 0.02381389373 | J152: 146 | K152: 0.4866666667 | L152: 568.0022244 | M152: 571.6925274 | N152: 579.1429672 | O152: 565.7778871 | P152: 569.571313 | Q152: 570.7964856
A153: 2008-01-11 | B153: 638.25 | C153: -8.48 | D153: -0.01328632981 | J153: 147 | K153: 0.49 | L153: 569.3254506 | M153: 571.0236759 | N153: 578.431832 | O153: 565.3001583 | P153: 569.9327777 | Q153: 570.0121412
A154: 2008-01-10 | B154: 646.73 | C154: -6.47 | D154: -0.01000417485 | J154: 148 | K154: 0.4933333333 | L154: 568.3454326 | M154: 570.490154 | N154: 578.6454804 | O154: 565.0118428 | P154: 570.2767152 | Q154: 569.8742188
A155: 2008-01-09 | B155: 653.2 | C155: 21.52 | D155: 0.03294549908 | J155: 149 | K155: 0.4966666667 | L155: 569.1216322 | M155: 570.4618079 | N155: 578.5388971 | O155: 564.6866164 | P155: 569.5372463 | Q155: 570.8647594
A156: 2008-01-08 | B156: 631.68 | C156: -17.57 | D156: -0.02781471631 | J156: 150 | K156: 0.5 | L156: 569.1576595 | M156: 570.8054993 | N156: 578.4992164 | O156: 564.7366307 | P156: 569.87842 | Q156: 572.9346686
A157: 2008-01-07 | B157: 649.25 | C157: -7.75 | D157: -0.01193685021 | J157: 151 | K157: 0.5033333333 | L157: 569.1156389 | M157: 570.3598041 | N157: 578.1548366 | O157: 566.1374968 | P157: 570.5829333 | Q157: 573.8879973
A158: 2008-01-04 | B158: 657 | C158: -28.33 | D158: -0.04312024353 | J158: 152 | K158: 0.5066666667 | L158: 569.1058076 | M158: 571.4977181 | N158: 578.2744184 | O158: 567.3330678 | P158: 570.9623154 | Q158: 573.3683164
A159: 2008-01-03 | B159: 685.33 | C159: 0.14 | D159: 0.0002042811492 | J159: 153 | K159: 0.51 | L159: 567.4428792 | M159: 571.6722438 | N159: 577.5490123 | O159: 567.7991483 | P159: 571.8586552 | Q159: 572.9769959
A160: 2008-01-02 | B160: 685.19 | C160: -6.29 | D160: -0.009179935492 | J160: 154 | K160: 0.5133333333 | L160: 568.0041498 | M160: 571.7254498 | N160: 577.7548247 | O160: 567.1083727 | P160: 571.8456093 | Q160: 573.8314346
A161: 2007-12-31 | B161: 691.48 | C161: -11.05 | D161: -0.01598021635 | J161: 155 | K161: 0.5166666667 | L161: 568.6173922 | M161: 572.8404175 | N161: 577.4157237 | O161: 566.630629 | P161: 571.1112717 | Q161: 574.4014174
A162: 2007-12-28 | B162: 702.53 | C162: 1.79 | D162: 0.002547933896 | J162: 156 | K162: 0.52 | L162: 569.2909331 | M162: 570.648202 | N162: 577.7617046 | O162: 567.0924698 | P162: 571.0634638 | Q162: 574.8272905
A163: 2007-12-27 | B163: 700.74 | C163: -10.1 | D163: -0.01441333447 | J163: 157 | K163: 0.5233333333 | L163: 569.6347234 | M163: 572.4590566 | N163: 577.0543209 | O163: 567.1758885 | P163: 572.5957823 | Q163: 575.2377401
A164: 2007-12-26 | B164: 710.84 | C164: 10.11 | D164: 0.01422260987 | J164: 158 | K164: 0.5266666667 | L164: 570.4843011 | M164: 571.6083185 | N164: 577.6915048 | O164: 566.7717466 | P164: 572.2929298 | Q164: 576.8642001
A165: 2007-12-24 | B165: 700.73 | C165: 4.04 | D165: 0.005765416066 | J165: 159 | K165: 0.53 | L165: 568.8044692 | M165: 571.017303 | N165: 578.9013494 | O165: 568.4985137 | P165: 572.8050668 | Q165: 575.8350996
A166: 2007-12-21 | B166: 696.69 | C166: 7 | D166: 0.01004751037 | J166: 160 | K166: 0.5333333333 | L166: 569.4053233 | M166: 570.7485037 | N166: 578.8157886 | O166: 568.4531893 | P166: 573.878026 | Q166: 576.0427247
A167: 2007-12-20 | B167: 689.69 | C167: 12.32 | D167: 0.01786309791 | J167: 161 | K167: 0.5366666667 | L167: 569.0419815 | M167: 570.5880624 | N167: 579.5592777 | O167: 568.4450628 | P167: 574.3074565 | Q167: 575.5816172
A168: 2007-12-19 | B168: 677.37 | C168: 4.02 | D168: 0.005934718101 | J168: 162 | K168: 0.54 | L168: 569.7314684 | M168: 570.424574 | N168: 579.4121822 | O168: 568.4010725 | P168: 574.2565126 | Q168: 575.7218794
A169: 2007-12-18 | B169: 673.35 | C169: 4.12 | D169: 0.006118660429 | J169: 163 | K169: 0.5433333333 | L169: 570.2892954 | M169: 571.0036072 | N169: 579.676691 | O169: 568.6418762 | P169: 575.0696688 | Q169: 576.1961031
A170: 2007-12-17 | B170: 669.23 | C170: -20.73 | D170: -0.03097589767 | J170: 164 | K170: 0.5466666667 | L170: 569.1246373 | M170: 571.6700603 | N170: 579.8464768 | O170: 568.9469709 | P170: 574.6814886 | Q170: 575.4423304
A171: 2007-12-14 | B171: 689.96 | C171: -4.09 | D171: -0.005927879877 | J171: 165 | K171: 0.55 | L171: 568.2158481 | M171: 571.2602288 | N171: 579.6283322 | O171: 569.1244083 | P171: 573.9154864 | Q171: 575.9674217
A172: 2007-12-13 | B172: 694.05 | C172: -5.3 | D172: -0.00763633744 | J172: 166 | K172: 0.5533333333 | L172: 568.8350799 | M172: 570.5740749 | N172: 580.4629853 | O172: 568.3876691 | P172: 573.1158042 | Q172: 576.5139885
A173: 2007-12-12 | B173: 699.35 | C173: 0.15 | D173: 0.0002144848788 | J173: 167 | K173: 0.5566666667 | L173: 567.702276 | M173: 572.2228449 | N173: 580.7721638 | O173: 568.7451299 | P173: 572.5829729 | Q173: 576.5305264
A174: 2007-12-11 | B174: 699.2 | C174: -19.22 | D174: -0.02748855835 | J174: 168 | K174: 0.56 | L174: 567.8782019 | M174: 571.5339166 | N174: 581.3160028 | O174: 569.213833 | P174: 571.9301079 | Q174: 575.782768
A175: 2007-12-10 | B175: 718.42 | C175: 3.55 | D175: 0.004941399182 | J175: 169 | K175: 0.5633333333 | L175: 567.8531286 | M175: 571.4454779 | N175: 581.6824491 | O175: 569.620148 | P175: 571.9854007 | Q175: 575.4484905
A176: 2007-12-07 | B176: 714.87 | C176: -0.39 | D176: -0.000545553737 | J176: 170 | K176: 0.5666666667 | L176: 567.8205928 | M176: 572.1871753 | N176: 581.4138468 | O176: 569.6163554 | P176: 571.6473101 | Q176: 576.1534838
A177: 2007-12-06 | B177: 715.26 | C177: 16.75 | D177: 0.02341805777 | J177: 171 | K177: 0.57 | L177: 568.2385916 | M177: 571.6971272 | N177: 580.5139877 | O177: 569.4877182 | P177: 570.6810501 | Q177: 576.6077336
A178: 2007-12-05 | B178: 698.51 | C178: 14.35 | D178: 0.02054372879 | J178: 172 | K178: 0.5733333333 | L178: 567.7443985 | M178: 571.637979 | N178: 580.0483196 | O178: 570.0476366 | P178: 570.79257 | Q178: 575.8601056
A179: 2007-12-04 | B179: 684.16 | C179: 2.63 | D179: 0.003844130028 | J179: 173 | K179: 0.5766666667 | L179: 566.8928812 | M179: 570.7988394 | N179: 579.6135968 | O179: 569.1645543 | P179: 571.4779274 | Q179: 575.6591653
A180: 2007-12-03 | B180: 681.53 | C180: -11.47 | D180: -0.01682978005 | J180: 174 | K180: 0.58 | L180: 566.9195027 | M180: 571.1132676 | N180: 577.5426288 | O180: 569.9609935 | P180: 569.1862441 | Q180: 576.1858787
A181: 2007-11-30 | B181: 693 | C181: =(B181-B182) -> -4 | D181: =(B181-B182)/B181 -> -0.005772005772 | J181: 175 | K181: 0.5833333333 | L181: 567.9770716 | M181: 571.3614318 | N181: 576.7018946 | O181: 570.0362808 | P181: 567.9899449 | Q181: 575.8590921
A182: 2007-11-29 | B182: 697 | C182: 4.74 | D182: 0.006800573888 | J182: 176 | K182: 0.5866666667 | L182: 568.090022 | M182: 571.3556315 | N182: 576.0136418 | O182: 570.9553997 | P182: 568.6273484 | Q182: 574.9167921
A183: 2007-11-28 | B183: 692.26 | C183: 18.69 | D183: 0.02699852657 | J183: 177 | K183: 0.59 | L183: 570.3374795 | M183: 571.215912 | N183: 575.4558726 | O183: 571.4599576 | P183: 569.8173499 | Q183: 575.4325504
A184: 2007-11-27 | B184: 673.57 | C184: 7.57 | D184: 0.01123862405 | J184: 178 | K184: 0.5933333333 | L184: 571.0729978 | M184: 570.6458306 | N184: 575.3562509 | O184: 571.4731218 | P184: 571.1458093 | Q184: 576.3333666
A185: 2007-11-26 | B185: 666 | C185: -10.7 | D185: -0.01606606607 | J185: 179 | K185: 0.5966666667 | L185: 571.1845821 | M185: 569.9731372 | N185: 575.9923432 | O185: 571.2825837 | P185: 571.4208868 | Q185: 575.623362
A186: 2007-11-23 | B186: 676.7 | C186: 16.18 | D186: 0.02391015221 | J186: 180 | K186: 0.6 | L186: 571.4414436 | M186: 568.7917365 | N186: 576.6862154 | O186: 572.2714696 | P186: 570.04714 | Q186: 575.021324
A187: 2007-11-21 | B187: 660.52 | C187: 11.98 | D187: 0.01813722522 | J187: 181 | K187: 0.6033333333 | L187: 570.6889081 | M187: 569.0211106 | N187: 576.2246578 | O187: 571.4922803 | P187: 569.1476289 | Q187: 574.2303062
A188: 2007-11-20 | B188: 648.54 | C188: 22.69 | D188: 0.03498627687 | J188: 182 | K188: 0.6066666667 | L188: 570.191609 | M188: 569.1625527 | N188: 576.2386319 | O188: 570.9883877 | P188: 568.9503318 | Q188: 574.6976574
A189: 2007-11-19 | B189: 625.85 | C189: -7.78 | D189: -0.01243109371 | J189: 183 | K189: 0.61 | L189: 570.4817278 | M189: 569.0764694 | N189: 576.9234611 | O189: 569.9082658 | P189: 569.2013828 | Q189: 575.3070776
A190: 2007-11-16 | B190: 633.63 | C190: 3.98 | D190: 0.006281268248 | J190: 184 | K190: 0.6133333333 | L190: 570.7213885 | M190: 568.5555873 | N190: 578.5543245 | O190: 569.4998939 | P190: 567.784576 | Q190: 575.2917263
A191: 2007-11-15 | B191: 629.65 | C191: -12.03 | D191: -0.01910585246 | J191: 185 | K191: 0.6166666667 | L191: 571.5783035 | M191: 567.3317927 | N191: 578.786167 | O191: 571.0014468 | P191: 568.0606196 | Q191: 575.3227351
A192: 2007-11-14 | B192: 641.68 | C192: -18.87 | D192: -0.02940718115 | J192: 186 | K192: 0.62 | L192: 572.6848745 | M192: 566.5463418 | N192: 578.6026812 | O192: 571.6039563 | P192: 568.8983458 | Q192: 575.4890193
A193: 2007-11-13 | B193: 660.55 | C193: 28.48 | D193: 0.0431155855 | J193: 187 | K193: 0.6233333333 | L193: 572.5110756 | M193: 566.4346099 | N193: 579.0403514 | O193: 572.0123737 | P193: 569.8156012 | Q193: 574.8647869
A194: 2007-11-12 | B194: 632.07 | C194: -31.9 | D194: -0.05046909361 | J194: 188 | K194: 0.6266666667 | L194: 572.9724328 | M194: 567.7229463 | N194: 579.3727124 | O194: 571.8228332 | P194: 569.8500625 | Q194: 574.3135429
A195: 2007-11-09 | B195: 663.97 | C195: -29.87 | D195: -0.0449869723 | J195: 189 | K195: 0.63 | L195: 573.5548259 | M195: 566.4145442 | N195: 579.4555869 | O195: 571.8169492 | P195: 569.4838854 | Q195: 573.4743911
A196: 2007-11-08 | B196: 693.84 | C196: -39.1 | D196: -0.05635304969 | J196: 190 | K196: 0.6333333333 | L196: 573.6122157 | M196: 565.6383803 | N196: 580.1886707 | O196: 571.4407452 | P196: 569.2835719 | Q196: 573.4827038
A197: 2007-11-07 | B197: 732.94 | C197: -8.85 | D197: -0.01207465823 | J197: 191 | K197: 0.6366666667 | L197: 573.8757345 | M197: 564.7943051 | N197: 580.3772319 | O197: 569.5027469 | P197: 569.347617 | Q197: 572.9526335
A198: 2007-11-06 | B198: 741.79 | C198: 16.14 | D198: 0.02175817954 | J198: 192 | K198: 0.64 | L198: 573.2567665 | M198: 564.3783041 | N198: 580.7118054 | O198: 569.0374544 | P198: 568.0204499 | Q198: 573.0368796
A199: 2007-11-05 | B199: 725.65 | C199: 14.4 | D199: 0.01984427754 | J199: =J198+1 -> 193 | K199: =K198+$B$21 -> 0.6433333333 | L199: =+$B$19*L198*($B$21)+$B$20*L198*NORMINV(RAND(),0,1)*($B$21)^0.5+L198 -> 573.8383651 | M199: =+$B$19*M198*($B$21)+$B$20*M198*NORMINV(RAND(),0,1)*($B$21)^0.5+M198 -> 564.9647469 | N199: =+$B$19*N198*($B$21)+$B$20*N198*NORMINV(RAND(),0,1)*($B$21)^0.5+N198 -> 581.051582 | O199: =+$B$19*O198*($B$21)+$B$20*O198*NORMINV(RAND(),0,1)*($B$21)^0.5+O198 -> 569.0244626 | P199: =+$B$19*P198*($B$21)+$B$20*P198*NORMINV(RAND(),0,1)*($B$21)^0.5+P198 -> 568.5009133 | Q199: =+$B$19*Q198*($B$21)+$B$20*Q198*NORMINV(RAND(),0,1)*($B$21)^0.5+Q198 -> 573.581901
A200: 2007-11-02 | B200: 711.25 | C200: 8.04 | D200: 0.01130404218 | J200: 194 | K200: 0.6466666667 | L200: 573.3476571 | M200: 564.7992667 | N200: 581.8126456 | O200: 569.3040221 | P200: 568.889355 | Q200: 573.1539291
A201: 2007-11-01 | B201: 703.21 | C201: -3.79 | D201: -0.005389570683 | J201: 195 | K201: 0.65 | L201: 574.3840411 | M201: 564.7878043 | N201: 580.8436682 | O201: 570.6405272 | P201: 568.1844346 | Q201: 573.3666072
A202: 2007-10-31 | B202: 707 | C202: 12.23 | D202: 0.01729844413 | J202: 196 | K202: 0.6533333333 | L202: 575.2283991 | M202: 564.2472956 | N202: 581.2760092 | O202: 572.0014116 | P202: 568.6071904 | Q202: 574.1336846
... 806 more rows
